Workbook

Sheet PTGE Midour Synthèse
B1: PTGE Midour Synthèse | C1: le 10/03/2025
A3: Code | B3: Nom | C3: Activités avec priorité HAUTE | D3: Activités avec priorité MOYENNE | E3: Activités avec priorité FAIBLE | F3: Etat d'avancement | G3: Progression (%) | H3: e² (Mm3) | I3: Objectif PTGE 2035 | J3: Commentaires
A4: CMU | B4: Connaissance des milieux et des usages | C4: =COUNTIF(Activités!I2:I8,"Haute") -> 0 | D4: =COUNTIF(Activités!I2:I8,"Moyenne") -> 0 | E4: =COUNTIF(Activités!I2:I8,"Faible") -> 7 | F4: =CMU_résumé!E11 -> 59.26190476 | G4: =CMU_résumé!F11 -> 59.26190476 | H4: =CMU_résumé!G11 -> 0
A5: AUM | B5: Adaptation des usages aux milieux | C5: =COUNTIF(Activités!I9:I22,"Haute") -> 4 | D5: =COUNTIF(Activités!I9:I22,"Moyenne") -> 3 | E5: =COUNTIF(Activités!I9:I22,"Faible") -> 7 | F5: =AUM_résumé!E8 -> 12.0125 | G5: =AUM_résumé!F8 -> 12.0125 | H5: =AUM_résumé!G8 -> 0.0140679 | I5: 1,75 Mm³
A6: OGRM | B6: Optimisation de la gestion des ressources et des milieux | C6: =COUNTIF(Activités!I23:I41,"Haute") -> 4 | D6: =COUNTIF(Activités!I23:I41,"Moyenne") -> 6 | E6: =COUNTIF(Activités!I23:I41,"Faible") -> 9 | F6: =OGRM_résumé!E9 -> 42.01666667 | G6: =OGRM_résumé!F9 -> 42.01666667 | H6: =OGRM_résumé!G9 -> 0.478 | I6: 3 Mm³
A7: MRC | B7: Mobilisation de ressources complémentaires | C7: =COUNTIF(Activités!I42:I48,"Haute") -> 1 | D7: =COUNTIF(Activités!I42:I48,"Moyenne") -> 6 | E7: =COUNTIF(Activités!I42:I48,"Faible") -> 0 | F7: =MRC_résumé!E6 -> 21.975 | G7: =MRC_résumé!F6 -> 21.975 | H7: =MRC_résumé!G6 -> 0 | I7: 5,35 Mm³ (2,15 reut + 2,1 Mm3 phc + 0,45 cscrh + 0,65 Mm3 rosm)
A8: ASV | B8: Accompagnement, sensibilisation et valorisation | C8: =COUNTIF(Activités!I49:I57,"Haute") -> 3 | D8: =COUNTIF(Activités!I49:I57,"Moyenne") -> 2 | E8: =COUNTIF(Activités!I49:I57,"Faible") -> 4 | F8: =ASV_résumé!E7 -> 41.65740741 | G8: =ASV_résumé!F7 -> 41.65740741 | H8: =ASV_résumé!G7 -> 0
A9: GOUV | B9: Gouvernance | C9: =COUNTIF(Activités!I58:I60,"Haute") -> 0 | D9: =COUNTIF(Activités!I58:I60,"Moyenne") -> 3 | E9: =COUNTIF(Activités!I58:I60,"Faible") -> 0 | F9: =Gouv_résumé!E7 -> 100 | G9: =Gouv_résumé!F7 -> 100 | H9: =Gouv_résumé!G7 -> 0
B11: PTGE Midour : Guide de lecture
A12: 21.975 | B12: avancement moyen compris entre 0 et 33%
A13: 41.65740741 | B13: avancement moyen compris entre 34 et 66 %
A14: 100 | B14: avancement moyen compris entre 67 et 100 %
A15: 58 | B15: barre de progression en %
A17: Priorité | B17: Le caractère prioritaire des actions est sujet à évolution
A18: E² (Mm3) | B18: Economie d'eau attendue (en million de mètres cubes)
A20: Non démarré | B20: Action non initiée / qui découle de l'avancement d'une préalable pour être démarrée
A21: Engagé | B21: En cours, dans les étapes préliminaires
A22: Bien avancé | B22: En cours, plutôt dans les dernières étapes
A23: Terminée | B23: Pour les actions ponctuelles avec une date de fin
A24: Se poursuit | B24: Action qui a vocation à durer dans le temps / Sans date de fin

Sheet Activités
A1: ='PTGE Midour Synthèse'!C1 -> le 10/03/2025 | B1: Code | C1: Activité | D1: Opérateurs | E1: MAEC/ Programme | F1: Début | G1: Fin | H1: Duration (jours) | I1: Priorité
A2: Connaissance des milieux et des usages | B2: CMU | C2: =CMU!B2 -> CMU1 - Quantifier les relations nappes-rivières et évaluer l'impact des prélèvements en eaux souterraines | D2: =_xlfn.CONCAT(CMU!E4:E5) -> IA, à définir, | F2: =CMU!G4 -> 00:00:00 | G2: =CMU!H4 -> 00:00:00 | H2: =G2-F2 -> 0 | I2: Faible | K2: Date min | L2: =_xlfn.MINIFS(F2:F60,F2:F60,">31/12/2019") -> 43831 | N2: #FF3300 | O2: Haute
B3: CMU | C3: =CMU!B8 -> CMU2 - Etudier la qualité sur le bassin du Midour | D3: =_xlfn.CONCAT(CMU!E10) -> Aquascope, AAPPMA 32, | F3: =MIN(CMU!G10) -> 2022-01-01 | G3: =MAX(CMU!H10) -> 2027-12-31 | H3: =G3-F3 -> 2190 | I3: Faible | K3: Date max | L3: =MAX(G2:G60) -> 47252 | N3: #FFE699 | O3: Moyenne
B4: CMU | C4: =CMU!B13 -> CMU3 - Améliorer le suivi hydrométrique du Ludon | D4: =_xlfn.CONCAT(CMU!E15:E17) -> DREAL NA, DREAL NA, DREAL NA Irrigadour, | F4: =MIN(CMU!G15:G17) -> 2020-10-01 | G4: =MAX(CMU!H15:H17) -> 2024-04-23 | H4: 1300 | I4: Faible | N4: #C6E0B4 | O4: Faible
B5: CMU | C5: =CMU!B20 -> CMU4 - Evaluer l'état d'envasement des ouvrages de stockage d'eau et les actions d'aménagement pour limiter l'érosion | D5: =_xlfn.CONCAT(CMU!E22:E23) -> IA, AEAG, Vivadour, IA, AEAG, Vivadour, | E5: SDC2, COV2, CPRA | F5: =MIN(CMU!G22:G23) -> 2022-01-01 | G5: =MAX(CMU!H22:H23) -> 2027-12-31 | H5: 2190 | I5: Faible
B6: CMU | C6: =CMU!B26 -> CMU5 - Connaître les besoins culturaux d'irrigation par campagne et la répartition de la ressource associée | D6: =_xlfn.CONCAT(CMU!E28) ->  | F6: =MIN(CMU!G28) -> 2023-01-01 | G6: =MAX(CMU!H28) -> 2028-12-31 | H6: 2191 | I6: Faible
B7: CMU | C7: =CMU!B31 -> CMU6 - Expertiser les réseaux collectifs d'irrigation à moderniser | D7: =_xlfn.CONCAT(CMU!E33:E36) -> CA40, CA40, CA32, CA32, | F7: =MIN(CMU!G33:G36) -> 2023-11-01 | G7: =MAX(CMU!H33:H36) -> 2024-08-31 | H7: 304 | I7: Faible
B8: CMU | C8: =CMU!B39 -> CMU7 - Recenser et inventorier le patrimoine naturel et les éléments paysagers à protéger | D8: =_xlfn.CONCAT(CMU!E41:E43) -> IA, acteurs agricoles, IA, acteurs agricoles, IA, acteurs agricoles, | F8: =MIN(CMU!G41:G43) -> 2023-01-01 | G8: =MAX(CMU!H41:H43) -> 2024-04-30 | H8: 485 | I8: Faible
A9: Adaptation des usages aux milieux | B9: AUM | C9: =AUM!B2 -> AUM1a : Mettre en place un groupe de travail sur le développement de filières durables sur le territoire et alentours | D9: =_xlfn.CONCAT(AUM!E4) -> Ensemble des acteurs du territoire, | F9: =MIN(AUM!G4) -> 00:00:00 | G9: =MAX(AUM!H4) -> 00:00:00 | H9: 0 | I9: Faible
B10: AUM | C10: =AUM!B7 -> AUM1b : Etude de faisabilité : redynamiser l'élevage en pâturage sur les têtes de bassins et valoriser les systèmes agropastoraux | D10: =_xlfn.CONCAT(AUM!E9:E11) -> ADASEA, CA32, ADASEA, CA32, ADASEA, CA32, | E10: HBV2, HBV3, CPRA | F10: =MIN(AUM!G9:G11) -> 2023-07-01 | G10: =MAX(AUM!H9:H11) -> 2025-12-31 | H10: 914 | I10: Faible
B11: AUM | C11: =AUM!B17 -> AUM1c : Etude de faisabilité : filières de valorisation des intercultures, des pratiques de conservation des sols et d'agroforesterie | D11: =_xlfn.CONCAT(AUM!D19:D23) -> CA40CA32CA32CA32CA40 | E11: SDC2, COV2, EAU1, EAU2, FER2 | F11: =MIN(AUM!G19) -> 2024-05-15 | G11: =MAX(AUM!H19) -> 2029-05-14 | H11: 1825 | I11: Faible
B12: AUM | C12: =AUM!B28 -> AUM1d : Etudier les débouchés en agriculture biologique | D12: =_xlfn.CONCAT(AUM!E30:E32) -> Bio du Gers, Agrobio 40,Bio du Gers, Agrobio 40, Bio du Gers, Agrobio 40, | E12: PHY8, PHY9, FER2, CPRA | F12: =MIN(AUM!G30:G32) -> 2023-01-01 | G12: =MAX(AUM!H30:H32) -> 2025-12-31 | H12: 1095 | I12: Haute
B13: AUM | C13: =AUM!B35 -> AUM2a : Mettre en place et suivre des sites expérimentaux | D13: =_xlfn.CONCAT(AUM!E37:E39) -> IA, CA40, SMD | E13: toutes | F13: =MIN(AUM!G37:G39) -> 2023-05-01 | G13: =MAX(AUM!H37:H39) -> 2028-12-31 | H13: 2071 | I13: Moyenne
B14: AUM | C14: =AUM!B42 -> AUM2b : Instituer des groupes de travail avec des agriculteurs basés sur les sites expérimentaux | D14: =_xlfn.CONCAT(AUM!E44:E44) -> IA, CA40, | F14: =MIN(AUM!G44:G44) -> 2023-06-01 | G14: =MAX(AUM!H44:H44) -> 00:00:00 | H14: -45078 | I14: Faible
B15: AUM | C15: =AUM!B47 -> AUM2c : Développer des réseaux d'agriculteurs sur le bassin du Midour | D15: =_xlfn.CONCAT(AUM!E49:E51) ->  | F15: =MIN(AUM!G49:G51) -> 00:00:00 | G15: =MAX(AUM!H49:H51) -> 00:00:00 | H15: 0 | I15: Faible
B16: AUM | C16: =AUM!B54 -> AUM2d : Instituer des groupes de travail avec les techniciens agricoles | D16: =_xlfn.CONCAT(AUM!E56:E58) ->  | F16: =MIN(AUM!G56:G58) -> 00:00:00 | G16: =MAX(AUM!H56:H58) -> 00:00:00 | H16: 0 | I16: Moyenne
B17: AUM | C17: =AUM!B61 -> AUM2e : Instaurer une formation continue avec des interventions d'experts à destination de la profession agricole | D17: =_xlfn.CONCAT(AUM!E63:E65) ->  | F17: =MIN(AUM!G63:G65) -> 00:00:00 | G17: =MAX(AUM!H63:H65) -> 00:00:00 | H17: 0 | I17: Faible
B18: AUM | C18: =AUM!B68 -> AUM3a : Mettre en place et suivre des sites expérimentaux | D18: =_xlfn.CONCAT(AUM!E70:E72) ->  | F18: =MIN(AUM!G70:G72) -> 00:00:00 | G18: =MAX(AUM!H70:H72) -> 00:00:00 | H18: 0 | I18: Faible
B19: AUM | C19: =AUM!B75 -> AUM3b : Instituer des groupes de travail avec des agriculteurs basés sur les sites expérimentaux | D19: =_xlfn.CONCAT(AUM!E77:E79) ->  | F19: =MIN(AUM!G77:G79) -> 00:00:00 | G19: =MAX(AUM!H77:H79) -> 00:00:00 | H19: 0 | I19: Moyenne
B20: AUM | C20: =AUM!B82 -> AUM4a : Instituer un groupe de travail avec les acteurs du territoire : arbres, haies champêtres, ripisylves | D20: =_xlfn.CONCAT(AUM!E84:E85) -> FDC32 ; PETR Pays d'ArmagnacFDC40 ; IA | F20: =MIN(AUM!G84:G85) -> 00:00:00 | G20: =MAX(AUM!H84:H85) -> 00:00:00 | H20: 0 | I20: Haute
B21: AUM | C21: =AUM!B88 -> AUM4b : Instituer un groupe de travail avec les acteurs du territoire : espaces semi-naturels et milieux humides | D21: =_xlfn.CONCAT(AUM!E90:E92) ->  | F21: =MIN(AUM!G90:G92) -> 00:00:00 | G21: =MAX(AUM!H90:H92) -> 00:00:00 | H21: 0 | I21: Haute
B22: AUM | C22: =AUM!B95 -> AUM4c : Aménager le bassin versant des plans d'eau pour limiter l'érosion et leur envasement | D22: =_xlfn.CONCAT(AUM!E97) -> FDC32/ CAUE/ CD32/ PETR Pays d'Armagnac/ SMD/ SMBVMD, | E22: EAU1, EAU2, COV2, SDC2, CPRA | F22: =MIN(AUM!G97) -> 2024-03-01 | G22: =MAX(AUM!H97) -> 2024-12-31 | H22: 305 | I22: Haute
A23: Optimisation de la gestion des ressources et des milieux | B23: OGRM | C23: =OGRM!B2 -> OGRM-1a : Poursuivre la mise en conformité des retenues individuelles | D23: =_xlfn.CONCAT(OGRM!E4:E5) -> DDT(M) | F23: =MIN(OGRM!G4:G5) -> 2022-01-01 | G23: =MAX(OGRM!H4:H5) -> 2028-12-31 | H23: 2556 | I23: Faible
B24: OGRM | C24: =OGRM!B8 -> OGRM-1b : Travailler à la valorisation des retenues sans usage | D24: =_xlfn.CONCAT(OGRM!E10:E11) ->  | F24: =MIN(OGRM!G10:G11) -> 2023-07-01 | G24: =MAX(OGRM!H10:H11) -> 2026-07-15 | H24: 1110 | I24: Moyenne
B25: OGRM | C25: =OGRM!B14 -> OGRM-1c : Reconquérir la capacité de stockage des plans d'eau | D25: =_xlfn.CONCAT(OGRM!E16:E17) ->  | F25: =MIN(OGRM!G16:G17) -> 00:00:00 | G25: =MAX(OGRM!H16:H17) -> 00:00:00 | H25: 0 | I25: Faible
B26: OGRM | C26: =OGRM!B20 -> OGRM-1d : Intégrer les prélèvements en nappes influençant les cours d'eau dans la gestion | D26: =_xlfn.CONCAT(OGRM!E22:E23) ->  | F26: =MIN(OGRM!G22:G23) -> 00:00:00 | G26: =MAX(OGRM!H22:H23) -> 00:00:00 | H26: 0 | I26: Moyenne
B27: OGRM | C27: =OGRM!B26 -> OGRM-2a : Systématiser la transmission d'informations entre irrigants et gestionnaire | D27: =_xlfn.CONCAT(OGRM!E28:E29) ->  | F27: =MIN(OGRM!G28:G29) -> 00:00:00 | G27: =MAX(OGRM!H28:H29) -> 00:00:00 | H27: 0 | I27: Faible
B28: OGRM | C28: =OGRM!B32 -> OGRM-2b : Equiper les irrigants en cours d'eau avec des compteurs communicants | D28: =_xlfn.CONCAT(OGRM!E34:E35) ->  | F28: =MIN(OGRM!G34:G35) -> 2020-01-01 | G28: =MAX(OGRM!H34:H35) -> 2028-12-31 | H28: 3287 | I28: Faible
B29: OGRM | C29: =OGRM!B38 -> OGRM-2c : Mettre en œuvre des doubles valeurs de débits consignes aux stations de gestion | D29: =_xlfn.CONCAT(OGRM!E40:E41) ->  | F29: =MIN(OGRM!G40:G41) -> 00:00:00 | G29: =MAX(OGRM!H40:H41) -> 00:00:00 | H29: 0 | I29: Faible
B30: OGRM | C30: =OGRM!B44 -> OGRM-2d : Continuer et valoriser la gestion anticipée des tours d'eau sur le territoire | D30: =_xlfn.CONCAT(OGRM!E46:E48) ->  | F30: =MIN(OGRM!G46:G48) -> 2022-01-01 | G30: =MAX(OGRM!H46:H48) -> 2028-12-31 | H30: 2556 | I30: Faible
B31: OGRM | C31: =OGRM!B51 -> OGRM-3a : Mettre en place et suivre des sites expérimentaux | D31: =_xlfn.CONCAT(OGRM!E53:E54) ->  | F31: =MIN(OGRM!G53:G54) -> 00:00:00 | G31: =MAX(OGRM!H53:H54) -> 00:00:00 | H31: 0 | I31: Faible
B32: OGRM | C32: =OGRM!B57 -> OGRM-3b : Instituer des groupes de travail et des formations avec des agriculteurs | D32: =_xlfn.CONCAT(OGRM!E59:E60) ->  | F32: =MIN(OGRM!G59:G60) -> 00:00:00 | G32: =MAX(OGRM!H59:H60) -> 00:00:00 | H32: 0 | I32: Moyenne
B33: OGRM | C33: =OGRM!B63 -> OGRM-3c : Acquisition de systèmes de gestion et d'outils d'aide à la décision en irrigation | D33: =_xlfn.CONCAT(OGRM!E65:E66) -> CA40 | F33: =MIN(OGRM!G65:G66) -> 2023-11-01 | G33: =MAX(OGRM!H65:H66) -> 2026-07-31 | H33: =G33-F33 -> 1003 | I33: Haute
B34: OGRM | C34: =OGRM!B69 -> OGRM-3d : Acquisition de matériels d'irrigation hydro-performants | D34: =_xlfn.CONCAT(OGRM!E71:E72) -> CA40, | F34: =MIN(OGRM!G71:G72) -> 2023-11-01 | G34: =MAX(OGRM!H71:H72) -> 2026-07-31 | H34: 1003 | I34: Haute
B35: OGRM | C35: =OGRM!B75 -> OGRM-4a : Réaliser des chantiers collectifs pour la mise aux normes de l'ANC | D35: =_xlfn.CONCAT(OGRM!E77:E78) ->  | F35: =MIN(OGRM!G77:G78) -> 00:00:00 | G35: =MAX(OGRM!H77:H78) -> 00:00:00 | H35: 0 | I35: Haute
B36: OGRM | C36: =OGRM!B81 -> OGRM-4b : Créer des milieux humides à vocation épuratoire en sortie de station de traitements des eaux usées | D36: =_xlfn.CONCAT(OGRM!E83:E85) ->  | F36: =MIN(OGRM!G83:G85) -> 00:00:00 | G36: =MAX(OGRM!H83:H85) -> 00:00:00 | H36: 0 | I36: Faible
B37: OGRM | C37: =OGRM!B88 -> OGRM-4c : Créer des zones tampons en sortie de réseaux de drainage agricole | D37: =_xlfn.CONCAT(OGRM!E90:E92) ->  | E37: CPRA | F37: =MIN(OGRM!G90:G92) -> 00:00:00 | G37: =MAX(OGRM!H90:H92) -> 00:00:00 | H37: 0 | I37: Moyenne
B38: OGRM | C38: =OGRM!B95 -> OGRM-5a : Affiner les zones à prioriser et les actions à réaliser | D38: =_xlfn.CONCAT(OGRM!E97:E98) ->  | F38: =MIN(OGRM!G97:G98) -> 2024-03-01 | G38: =MAX(OGRM!H97:H98) -> 2024-12-31 | H38: 305 | I38: Faible
B39: OGRM | C39: =OGRM!B101 -> OGRM-5b : Mettre en place des zones pilotes sur le territoire | D39: =_xlfn.CONCAT(OGRM!E103:E104) ->  | F39: =MIN(OGRM!G103:G104) -> 2024-03-01 | G39: =MAX(OGRM!H103:H104) -> 2024-12-31 | H39: 305 | I39: Haute
B40: OGRM | C40: =OGRM!B107 -> OGRM-5c : Définir les techniques et les outils adaptés pour une restauration à plus grande échelle | D40: =_xlfn.CONCAT(OGRM!E109:E110) ->  | F40: =MIN(OGRM!G109:G110) -> 2024-03-01 | G40: =MAX(OGRM!H109:H110) -> 2024-12-31 | H40: 305 | I40: Moyenne
B41: OGRM | C41: =OGRM!B113 -> OGRM-5d : Travailler à l'effacement des seuils de pompage en rivière | D41: =_xlfn.CONCAT(OGRM!E115:E116) ->  | F41: =MIN(OGRM!G115:G116) -> 2024-03-01 | G41: =MAX(OGRM!H115:H116) -> 2028-12-31 | H41: 1766 | I41: Moyenne
A42: Mobilisation de ressources complémentaires | B42: MRC | C42: =MRC!B2 -> MRC-1a : Valoriser les eaux de consommation : STEU de Conte, Nogaro et Villeneuve de Marsan | D42: =_xlfn.CONCAT(MRC!E4:E6) ->  | F42: =MIN(MRC!G4:G6) -> 2020-01-01 | G42: =MAX(MRC!H4:H6) -> 2028-12-31 | H42: 3287 | I42: Moyenne
B43: MRC | C43: =MRC!B9 -> MRC-1b : Sensibiliser les industriels sur les possibilités de recyclage de leurs eaux de process | D43: =_xlfn.CONCAT(MRC!E11:E12) ->  | F43: =MIN(MRC!G11:G12) -> 00:00:00 | G43: =MAX(MRC!H11:H12) -> 00:00:00 | H43: 0 | I43: Moyenne
B44: MRC | C44: =MRC!B15 -> MRC-2a : Mettre en place des pompages complémentaires hivernaux pour les RSE de Maribot, Lapeyrie, Charros et Arthez - Axe Midour | D44: =_xlfn.CONCAT(MRC!E17:E18) ->  | F44: =MIN(MRC!G17:G18) -> 00:00:00 | G44: =MAX(MRC!H17:H18) -> 00:00:00 | H44: 0 | I44: Moyenne
B45: MRC | C45: =MRC!B21 -> MRC-2b : Rehausser les RSE de Maribot et Lapeyrie et créer une (des) retenue(s) déconnectée(s) de substitution - Axe Midour | D45: =_xlfn.CONCAT(MRC!E23:E24) ->  | F45: =MIN(MRC!G23:G24) -> 00:00:00 | G45: =MAX(MRC!H23:H24) -> 00:00:00 | H45: 0 | I45: Haute
B46: MRC | C46: =MRC!B27 -> MRC-2c : Connecter les réseaux d'irrigation aux ouvrages de stockage collectifs dans la mesure du possible - Axe Midour | D46: =_xlfn.CONCAT(MRC!E29:E30) ->  | F46: =MIN(MRC!G29:G30) -> 00:00:00 | G46: =MAX(MRC!H29:H30) -> 00:00:00 | H46: 0 | I46: Moyenne
B47: MRC | C47: =MRC!B33 -> MRC-2d : Superviser l'optimisation du réservoir de Saint-Gein et la connexion directe des irrigants concernés à cet ouvrage - Axe Ludon | D47: =_xlfn.CONCAT(MRC!E35:E36) ->  | F47: =MIN(MRC!G35:G36) -> 00:00:00 | G47: =MAX(MRC!H35:H36) -> 00:00:00 | H47: 0 | I47: Moyenne
B48: MRC | C48: =MRC!B39 -> MRC-2e : Etudier la nécessité de créer une retenue déconnectée de substitution sur le Lusson | D48: =_xlfn.CONCAT(MRC!E41:E42) ->  | F48: =MIN(MRC!G41:G42) -> 00:00:00 | G48: =MAX(MRC!H41:H42) -> 00:00:00 | H48: 0 | I48: Moyenne
A49: Accompagnement, sensibilisation et valorisation | B49: ASV | C49: =ASV!B2 -> ASV-1a : Appuyer individuellement les agriculteurs dans leur démarche de progrès : ATI | D49: =_xlfn.CONCAT(ASV!E4:E6) -> IA, IA, | F49: =MIN(ASV!G4:G6) -> 2022-07-01 | G49: =MAX(ASV!H4:H6) -> 2022-12-31 | H49: 183 | I49: Faible
B50: ASV | C50: =ASV!B9 -> ASV-1b : Appuyer collectivement les agriculteurs dans leur démarche de progrès : GT, formations, journées d'échange | D50: =_xlfn.CONCAT(ASV!E11:E13) -> IA, IA, IA, | F50: =MIN(ASV!G11:G13) -> 2022-01-01 | G50: =MAX(ASV!H11:H13) -> 2022-12-31 | H50: 364 | I50: Moyenne
B51: ASV | C51: =ASV!B16 -> ASV-1c : Mener des expérimentations | D51: =_xlfn.CONCAT(ASV!E18:E19) ->  | F51: =MIN(ASV!G18:G19) -> 00:00:00 | G51: =MAX(ASV!H18:H19) -> 00:00:00 | H51: 0 | I51: Faible
B52: ASV | C52: =ASV!B22 -> ASV-1d : Organiser l'information et la formation pour les conseillers agricoles | D52: =_xlfn.CONCAT(ASV!E24:E26) -> IA, IA, | F52: =MIN(ASV!G24:G26) -> 00:00:00 | G52: =MAX(ASV!H24:H26) -> 00:00:00 | H52: 0 | I52: Moyenne
B53: ASV | C53: =ASV!B29 -> ASV-1e : Mobiliser les mesures agro-environnementales et climatiques | D53: =_xlfn.CONCAT(ASV!E31:E33) -> CA32, CA40, IA, | E53: toutes | F53: =MIN(ASV!G31:G33) -> 2022-01-01 | G53: =MAX(ASV!H31:H33) -> 2028-12-31 | H53: 2556 | I53: Faible
B54: ASV | C54: =ASV!B36 -> ASV-1f : Rechercher et construire de nouvelles mesures d'aide pour les agriculteurs | D54: =_xlfn.CONCAT(ASV!E38:E39) -> IA, IA, | F54: =MIN(ASV!G38:G39) -> 2021-01-01 | G54: =MAX(ASV!H38:H39) -> 2028-12-31 | H54: 2921 | I54: Haute
B55: ASV | C55: =ASV!B42 -> ASV-2a : Développer des pratiques alternatives pour la gestion des paysages à l'échelle des collectivités | D55: =_xlfn.CONCAT(ASV!E44:E45) -> FDC / IAFDC32 / PETR / AP32 | E55: CPRA | F55: =MIN(ASV!G44:G45) -> 1905-07-15 | G55: =MAX(ASV!H44:H45) -> 00:00:00 | H55: -2023 | I55: Haute
B56: ASV | C56: =ASV!B48 -> ASV-2b : Développer des pratiques alternatives pour la gestion de l'eau à l'échelle des collectivités | D56: =_xlfn.CONCAT(ASV!E50:E51) ->  | F56: =MIN(ASV!G50:G51) -> 00:00:00 | G56: =MAX(ASV!H50:H51) -> 00:00:00 | H56: 0 | I56: Haute
B57: ASV | C57: =ASV!B54 -> ASV-3a : Elaborer un plan d'information, de sensibilisation et de valorisation | D57: =_xlfn.CONCAT(ASV!E56:E57) ->  | F57: =MIN(ASV!G56:G57) -> 00:00:00 | G57: =MAX(ASV!H56:H57) -> 00:00:00 | H57: 0 | I57: Faible
A58: Gouvernance | B58: GOUV | C58: =Gouv!B2 -> GOUV-1 : Maintenir la gouvernance du projet de territoire et la mobilisation des instances | D58: =_xlfn.CONCAT(Gouv!E4:E5) -> IA, IA, | F58: =MIN(Gouv!G4:G5) -> 2020-01-01 | G58: =MAX(Gouv!H4:H5) -> 2028-12-31 | H58: 3287 | I58: Moyenne
B59: GOUV | C59: =Gouv!B8 -> GOUV-2 : Animer et coordonner le projet de territoire | D59: =_xlfn.CONCAT(Gouv!E10:E11) -> IA, IA, | F59: =MIN(Gouv!G10:G11) -> 2020-01-01 | G59: =MAX(Gouv!H10:H11) -> 2028-12-31 | H59: 3287 | I59: Moyenne
B60: GOUV | C60: =Gouv!B14 -> GOUV-3 : Elaborer un tableau de bord pour suivre la mise en œuvre du projet de territoire | D60: =_xlfn.CONCAT(Gouv!E16) -> IA, | F60: =MIN(Gouv!G16) -> 2020-01-01 | G60: =MAX(Gouv!H16) -> 2028-12-31 | H60: 3287 | I60: Moyenne

Sheet CMU_résumé
A1: CMU - Connaissance des milieux et des usages | G1: ='PTGE Midour Synthèse'!C1 -> le 10/03/2025
A3: Code | B3: Tâche | C3: Actions à réaliser au préalable | D3: Actions qui en dépendent ou en lien | E3: Etat d'avancement | F3: Progression | G3: E² (Mm3) | H3: Objectif PTGE 2035 | I3: Commentaires
A4: CMU1 | B4: Quantifier les relations nappes-rivières et évaluer l'impact des prélèvements en eaux souterraines | C4: - | D4: OGRM1d | E4: =CMU!F6 -> 5 | F4: =CMU!P6 -> 5 | G4: =CMU!O6 -> 0 | I4: En cours de lancement dans le cadre de l'étude VP.
A5: CMU2 | B5: Etudier la qualité sur le bassin du Midour | C5: - | D5: - | E5: =CMU!F11 -> 100 | F5: =CMU!P11 -> 100 | G5: =CMU!O11 -> 0 | H5: 2020-2021 : Etude Midour 32 2021-2022 : Etude Midou 40 Production d’un rapport (EdL) Proposition de mesures correctives sur le plan d’eau et le BV amont aval Porté à connaissance des acteurs du BV du Midour | I5: Etude des réservoirs du Midour 32 terminée. Restitution en août 2023. Etude des réservoirs du Midour 40 lancée au premier semestre 2022. Restitution effectuée fin 2024.
A6: CMU3 | B6: Améliorer le suivi hydrométrique du Ludon | C6: - | D6: - | E6: =CMU!F18 -> 100 | F6: =CMU!P18 -> 100 | G6: =CMU!O18 -> 0 | I6: La station hydrométrique a été installée et est fonctionnelle depuis 2020. Un suivi est en place. Acune échelle limnimétrique n'a été installée à ce jour.
A7: CMU4 | B7: Evaluer l'état d'envasement des ouvrages de stockage d'eau et les actions d'aménagement pour limiter l'érosion | C7: - | D7: AUM4c, OGRM1b, CMU2 | E7: =CMU!F24 -> 41.5 | F7: =CMU!P24 -> 41.5 | G7: =CMU!O24 -> 0 | H7: 2022 : Lancement de l’étude (durée à préciser) | I7: Premières discussions pour concevoir un projet lancées fin 2022 mais interrompues en 2023. A reprendre pour les plans d'eau privés, selon besoins exprimés. Bathymétries des 5 réservoirs IA réalisées dans le cadre de l'étude qualité des eaux du Midour (CMU2).
A8: CMU5 | B8: Connaître les besoins culturaux d'irrigation par campagne et la répartition de la ressource associée | C8: - | D8: - | E8: =CMU!F29 -> 75 | F8: =CMU!P29 -> 75 | G8: =CMU!O29 -> 0 | I8: Premières discussions pour concevoir un projet lancées fin 2022 mais interrompues en 2023. A reprendre. Bathymétries des 5 réservoirs IA réalisées dans le cadre de l'étude qualité des eaux du Midour (CMU2).
A9: CMU6 | B9: Expertiser les réseaux collectifs d'irrigation à moderniser | C9: - | D9: MRC2c | E9: =CMU!F37 -> 35 | F9: =CMU!P37 -> 35 | G9: =CMU!O37 -> 0 | H9: 2020 : Constitution du GT 2021 et suivante s : programmes annuels d’expertise | I9: Etude des réseaux d'irrigation du Gers réalisée indépendemment du PTGE par la Région Occitanie avec le concours des chambres d'agriculture départementales. En attente de l'extraction des résultats par la CA32 pour le Midour. Retardé par la sortie d'appel à projet prioritaire.
A10: CMU7 | B10: Recenser et inventorier le patrimoine naturel et les éléments paysagers à protéger | C10: - | D10: - | E10: =CMU!F44 -> 58.33333333 | F10: =CMU!P44 -> 58.33333333 | G10: =CMU!O44 -> 0 | H10: 2023 : aboutissement de l’action au mois sur le territoire de l’Armagnac | I10: données globalement incluses dans les projets Trame Verte 32 & 40, accompagnement vers les collectivités débuté pour le Gers, prévu en 2025 pour les Landes.
D11: Avancement moyen CMU | E11: =AVERAGE(E4:E10) -> 59.26190476 | F11: =AVERAGE(F4:F10) -> 59.26190476 | G11: =SUM(G4:G10) -> 0

Sheet CMU
B1: Connaissance des milieux et des usages | F1: ='PTGE Midour Synthèse'!C1 -> le 10/03/2025
B2: CMU1 - Quantifier les relations nappes-rivières et évaluer l'impact des prélèvements en eaux souterraines
A3: Code | B3: Tâche | C3: Maître d'ouvrage (MO) | D3: Partenaires techniques | E3: Opérateurs | F3: Etat d'avancement | G3: Début | H3: Fin | I3: Commentaires de la ligne | J3: Action engagé (MAEC ou autre) | K3: Surface engagé (ha) | L3: Vol d'eau récupéré | M3: Economie d'eau attendue (Mm3) | N3: FC | O3: E² (Mm3) | P3: Progression (%) | Q3: Commentaire général | T3: #DBDBDB | U3: Non démarré | V3: Action non initiée / qui découle de l'avancement d'une préalable pour être démarrée
A4: CMU1a | B4: Phase de conception | C4: IA | D4: DDTM40, Irrigadour, SYDEC, autres préleveurs éventuels | E4: IA, | F4: Non démarré | O4: =M4*N4 -> 0 | P4: 10 | Q4: En cours de lancement dans le cadre de l'étude VP. | T4: #FFCCFF | U4: Engagé | V4: En cours, dans les étapes préliminaires
A5: CMU1b | B5: Etude | C5: IA | D5: DDTM40, Irrigadour, SYDEC, autres préleveurs éventuels | E5: à définir, | F5: Non démarré | M5: 0 | O5: =M5*N5 -> 0 | P5: 0 | T5: #CC66FF | U5: Bien avancé | V5: En cours, plutôt dans les dernières étapes
F6: =P6 -> 5 | M6: =SUM(M4:M5) -> 0 | N6: =SUM(N4:N5) -> 0 | O6: =SUM(O4:O5) -> 0 | P6: =AVERAGE(P4:P5) -> 5 | T6: #A9D08E | U6: Terminée | V6: Pour les actions ponctuelles avec une date de fin
T7: #A9D08E | U7: Se poursuit | V7: Action qui a vocation à durer dans le temps / Sans date de fin
B8: CMU2 - Etudier la qualité sur le bassin du Midour
A9: Code | B9: Tâche | C9: Maître d'ouvrage (MO) | D9: Partenaires techniques | E9: Opérateurs | F9: Etat d'avancement | G9: Début | H9: Fin | I9: Commentaires de la ligne | J9: Action engagé (MAEC ou autre) | K9: Surface engagé (ha) | L9: Vol d'eau récupéré | M9: Economie d'eau attendue (Mm3) | N9: FC | O9: E² (Mm3) | P9: Progression (%) | Q9: Commentaire général
A10: CMU2a | B10: Projet d'étude la qualitée d'eau | C10: IA | D10: IA, AEAG, DDTM40, DDT32, Syndicat de rivière 40 et 32, Fédération de pêche 40 et 32, CA40, CA32, OFB40, OFB32, Nature en Occitanie, Adasea, Association Botanique Gersoise, etc | E10: Aquascope, AAPPMA 32, | F10: Terminée | G10: 2022-01-01 | H10: 2027-12-31 | O10: 0 | P10: 100 | Q10: La première consultation en 2020 n'a pas abouti car les offres étaient supérieures au financement possible. La bathymétrie des réservoirs du Midour 32 a été réalisée début 2021 par la fédération de pêche 32. L'étude Aquascop sur le Midour aval est terminée fin 2024, à la suite de l'étude sur le Midour amont, déjà terminée.
F11: =P11 -> 100 | M11: =SUM(M10:M10) -> 0 | N11: =SUM(N10:N10) -> 0 | O11: =SUM(O10:O10) -> 0 | P11: =AVERAGE(P10) -> 100
B13: CMU3 - Améliorer le suivi hydrométrique du Ludon
A14: Code | B14: Tâche | C14: Maître d'ouvrage (MO) | D14: Partenaires techniques | E14: Opérateurs | F14: Etat d'avancement | G14: Début | H14: Fin | I14: Commentaires de la ligne | J14: Action engagé (MAEC ou autre) | K14: Surface engagé (ha) | L14: Vol d'eau récupéré | M14: Economie d'eau attendue (Mm3) | N14: FC | O14: E² (Mm3) | P14: Progression (%) | Q14: Commentaire général
A15: CMU3a | B15: Installation de la station | C15: DREAL Nouvelle Aquitaine | D15: IA, CACG, DDTM40, ASA Ludon Gaube, Irrigadour | E15: DREAL NA, | F15: Terminée | G15: 2020-10-01 | H15: 2020-12-31 | O15: 0 | P15: 100 | Q15: La station permet une mesure continue des débits du cours d'eau. Aucune échelle limnimétrique et/ou station complémentaire n'ont été installées à ce jour. Un des objectifs de ce suivi est également d'évaluer l'impact de la suppression des prélèvements en cours d'eau en lien avec le projet REUT de Conte.
A16: CMU3b | B16: Mise en service | C16: DREAL Nouvelle Aquitaine | D16: IA, CACG, DDTM40, ASA Ludon Gaube, Irrigadour | E16: DREAL NA, | F16: Terminée | G16: 2021-03-01 | H16: 2021-03-31 | O16: 0 | P16: 100
A17: CMU3c | B17: Suivi | C17: DREAL Nouvelle Aquitaine | D17: IA, CACG, DDTM40, ASA Ludon Gaube, Irrigadour | E17: DREAL NA Irrigadour, | F17: Se poursuit | G17: 2021-04-01 | H17: 2024-04-23 | O17: 0 | P17: 100
F18: =P18 -> 100 | M18: =SUM(M15:M17) -> 0 | N18: =SUM(N15:N17) -> 0 | O18: =SUM(O15:O17) -> 0 | P18: =AVERAGE(P15:P17) -> 100
B20: CMU4 - Evaluer l'état d'envasement des ouvrages de stockage d'eau et les actions d'aménagement pour limiter l'érosion
A21: Code | B21: Tâche | C21: Maître d'ouvrage (MO) | D21: Partenaires techniques | E21: Opérateurs | F21: Etat d'avancement | G21: Début | H21: Fin | I21: Commentaires de la ligne | J21: Action engagé (MAEC ou autre) | K21: Surface engagé (ha) | L21: Vol d'eau récupéré | M21: Economie d'eau attendue (Mm3) | N21: FC | O21: E² (Mm3) | P21: Progression (%) | Q21: Commentaire général
A22: CMU4a | B22: Phase de conception : réalisation du groupe de travail | C22: Organisation du groupe de travail : Institution Adour | D22: Ensemble des acteurs du territoire | E22: IA, AEAG, Vivadour, | F22: Se poursuit | G22: 2022-11-01 | H22: 2024-06-30 | O22: 0 | P22: 50 | Q22: Une proposition de projet a été faite en 2022 par Vivadour. Après échanges avec l'agence de l'eau, il a été décidé que le projet se concentrerait sur un ou plusieurs sous-bassin et sur les plans d'eau les plus grands. Le choix des sous-bassins et des plans d'eau s'appuiera plusieurs critères (zones de forte érosion, risque de déficit, ...).
A23: CMU4b | B23: Bathymétrie + suivi des sédiments | C23: Organisation du groupe de travail : Institution Adour | D23: Ensemble des acteurs du territoire | E23: IA, AEAG, Vivadour, | F23: Se poursuit | G23: 2022-01-01 | H23: 2027-12-31 | O23: 0 | P23: 33
F24: =P24 -> 41.5 | M24: =SUM(M22:M23) -> 0 | N24: =SUM(N22:N23) -> 0 | O24: =SUM(O22:O23) -> 0 | P24: =AVERAGE(P22:P23) -> 41.5
B26: CMU5 - Connaître les besoins culturaux d'irrigation par campagne et la répartition de la ressource associée
A27: Code | B27: Tâche | C27: Maître d'ouvrage (MO) | D27: Partenaires techniques | E27: Opérateurs | F27: Etat d'avancement | G27: Début | H27: Fin | I27: Commentaires de la ligne | J27: Action engagé (MAEC ou autre) | K27: Surface engagé (ha) | L27: Vol d'eau récupéré | M27: Economie d'eau attendue (Mm3) | N27: FC | O27: E² (Mm3) | P27: Progression (%) | Q27: Commentaire général
A28: CMU5a | B28: Recensement en début de campagne | C28: IRRIGADOUR | D28: Maïsadour, Vivadour, industries agro-alimentaires, groupements de producteurs, CA32, CA40, etc | F28: Se poursuit | G28: 2023-01-01 | H28: 2028-12-31 | O28: 0 | P28: 75 | Q28: Remonter jusqu'à 2020 (lancement de la mise en œuvre du PTGE) sollicitation annuelle (novembre) à l'occasion du "recensement des besoins" (demande de renouvellement de l'autorisation de prélèvement n+1), complété sur certains sousbassins par une nouvelle enquête juste avant campagne d'irrigation ; taux de retour moyen 60 à 80%
F29: =P29 -> 75 | M29: =SUM(M28:M28) -> 0 | N29: =SUM(N28:N28) -> 0 | O29: =SUM(O28:O28) -> 0 | P29: =AVERAGE(P28) -> 75
B31: CMU6 - Expertiser les réseaux collectifs d'irrigation à moderniser
A32: Code | B32: Tâche | C32: Maître d'ouvrage (MO) | D32: Partenaires techniques | E32: Opérateurs | F32: Etat d'avancement | G32: Début | H32: Fin | I32: Commentaires de la ligne | J32: Action engagé (MAEC ou autre) | K32: Surface engagé (ha) | L32: Vol d'eau récupéré | M32: Economie d'eau attendue (Mm3) | N32: FC | O32: E² (Mm3) | P32: Progression (%) | Q32: Commentaire général
A33: CMU6a | B33: Conception de l'étude 40 | C33: Animateur territorial agricole, CA32, CA40, ASA hydrauliques | D33: Animateur territorial agricole, CA32, CA40, bureaux d'études, etc | E33: CA40, | F33: Non démarré | O33: 0 | P33: 0 | Q33: Des discussions ont été engagées en 2023 sur cette action. L'appel à projet "Economie et efficience de l'eau" de l'AEAG sorti en mai 2023 pourrait être l'opportunité de faire accélérer le lancement de cette action.
A34: CMU6b | B34: Étude 40 | C34: Animateur territorial agricole, CA32, CA40, ASA hydrauliques | D34: Animateur territorial agricole, CA32, CA40, bureaux d'études, etc | E34: CA40, | F34: Non démarré | O34: 0 | P34: 0
A35: CMU6c | B35: Extraction des données de l'étude 32 | C35: Animateur territorial agricole, CA32, CA40, ASA hydrauliques | D35: Animateur territorial agricole, CA32, CA40, bureaux d'études, etc | E35: CA32, | F35: Terminée | G35: 2023-11-01 | H35: 2023-12-31 | O35: 0 | P35: 100
A36: CMU6d | B36: Analyse et scénario modernisation et interconnexion | C36: Animateur territorial agricole, CA32, CA40, ASA hydrauliques | D36: Animateur territorial agricole, CA32, CA40, bureaux d'études, etc | E36: CA32, | F36: Engagé | G36: 2024-01-01 | H36: 2024-08-31 | O36: 0 | P36: 40
F37: =P37 -> 35 | M37: =SUM(M33:M36) -> 0 | N37: =SUM(N33:N36) -> 0 | O37: =SUM(O33:O36) -> 0 | P37: =AVERAGE(P33:P36) -> 35
B39: CMU7 - Recenser et inventorier le patrimoine naturel et les éléments paysagers à protéger
A40: Code | B40: Tâche | C40: Maître d'ouvrage (MO) | D40: Partenaires techniques | E40: Opérateurs | F40: Etat d'avancement | G40: Début | H40: Fin | I40: Commentaires de la ligne | J40: Action engagé (MAEC ou autre) | K40: Surface engagé (ha) | L40: Vol d'eau récupéré | M40: Economie d'eau attendue (Mm3) | N40: FC | O40: E² (Mm3) | P40: Progression (%) | Q40: Commentaire général
A41: CMU7a | B41: Recensement des éléments à protéger | C41: Animation : IA | D41: Collectivités, AP32, ADASEA, AT32, AT40, Sepanso40, Nature en Occitanie, Association botanique gersoise, DDTM40, DDT32, OFB | E41: IA, acteurs agricoles, | F41: Terminée | G41: 2023-01-01 | H41: 2023-12-31 | I41: Réalisé via le projet Trame Verte 32 & 40 dans l'état des lieux | O41: 0 | P41: 100 | Q41: données globalement incluses dans les projets Trame Verte 32 & 40, accompagnement vers les collectivités débuté pour le Gers, prévu en 2025 pour les Landes.
A42: CMU7b | B42: Sélection des éléments à protéger | C42: Animation : IA | D42: Collectivités, AP32, ADASEA, AT32, AT40, Sepanso40, Nature en Occitanie, Association botanique gersoise, DDTM40, DDT32, OFB | E42: IA, acteurs agricoles, | F42: Bien avancé | G42: 2024-01-01 | H42: 2024-04-30 | I42: Réalisé via le projet Trame Verte 32 & 40 dans l'état des lieux : le grain fonctionnel est à préserver. | O42: 0 | P42: 50
A43: CMU7c | B43: Sensibilisation auprès des collectivités | C43: Animation : IA | D43: Collectivités, AP32, ADASEA, AT32, AT40, Sepanso40, Nature en Occitanie, Association botanique gersoise, DDTM40, DDT32, OFB | E43: IA, acteurs agricoles, | F43: Engagé | G43: 2024-12-01 | I43: Les opérations de sensibilisation et animations en pied de haie ont débuté dans le Gers. | O43: 0 | P43: 25
F44: =P44 -> 58.33333333 | M44: =SUM(M41:M43) -> 0 | N44: =SUM(N41:N43) -> 0 | O44: =SUM(O41:O43) -> 0 | P44: =AVERAGE(P41:P43) -> 58.33333333

Sheet AUM_résumé
A1: AUM - Adaptation des usages aux milieux | F1: ='PTGE Midour Synthèse'!C1 -> le 10/03/2025
A3: Code | B3: Tâche | C3: Actions à réaliser au préalable | D3: Actions qui en dépendent ou en lien | E3: Etat d'avancement | F3: Progression | G3: E² (Mm3) | H3: Objectif PTGE 2035 | I3: Commentaires
A4: AUM1 | B4: Développer des filières durables sur le territoire | E4: =AVERAGE(AUM!F5,AUM!F15,AUM!F26,AUM!F33) -> 38.75 | F4: =AVERAGE(AUM!Q5,AUM!Q15,AUM!Q26,AUM!Q33) -> 38.75 | G4: =SUM(AUM!N5,AUM!N15,AUM!N26,AUM!N33) -> 0.0140679 | I4: des éléments dispo chez les partenaires agricoles | J4: Des filières sont déjà en cours de développement sur le territoire et alentours. Un projet pour tirer parti de ces filières est en cours de réflexion mais sa mise en place dépendra de la charge de travail et du déroulement des autres projets plus prioritaires. Pour l'action AUM1a "Mettre en place un groupe de travail sur le développement de filières durables sur le territoire et alentours", il est envisagé de s'appuyer sur le comité agricole en réalisant des réunions thématiques 1 à 2 fois par an notamment sur le thème des filières. La conception d'un nouveau groupe de travail qui ferait appel aux mêmes acteurs semblent superflue.
A5: AUM2 | B5: Développer des pratiques culturales permettant de conserver et d'optimiser les services rendus par les sols | E5: =AVERAGE(AUM!F40,AUM!F45,AUM!F52,AUM!F59,AUM!F66) -> 12 | F5: =AVERAGE(AUM!Q40,AUM!Q45,AUM!Q52,AUM!Q59,AUM!Q66) -> 12 | G5: =SUM(AUM!P40,AUM!P45,AUM!P52,AUM!P59,AUM!P66) -> 0 | H5: 1,75 Mm³ 2025 : 8 60 ha de SCOP et vignes ayant engagé un changement de pratiques 400 km de haies et ripisylves | I5: des éléments via les MAEC mises en place, axe de travail à poursuivre avec les partenaires agricoles
A6: AUM3 | B6: Développer une agriculture biologique adaptée au territoire | E6: =AVERAGE(AUM!F73,AUM!F80) -> 3.333333333 | F6: =AVERAGE(AUM!Q73,AUM!Q80) -> 3.333333333 | G6: =SUM(AUM!P73,AUM!P80) -> 0 | I6: des éléments dispo chez les partenaires agricoles
A7: AUM4 | B7: Développer des pratiques d'aménagement de l'espace rural | C7: CMU4 | E7: =AVERAGE(AUM!F86,AUM!F93,AUM!F98) -> 24.05555556 | F7: =AVERAGE(AUM!Q86,AUM!Q93,AUM!Q98) -> 24.05555556 | G7: =SUM(AUM!P86,AUM!P93,AUM!P98) -> 0 | H7: 2035 : 25 000 ha avec couverts végétaux, intercultures, diminution du travail du sol, semis direct sous couvert 1 235 ha avec agroforesterie, haies, ripisylves | I7: Etude filière AB programmée pour 2024
D8: Avancement moyen AUM | E8: =AVERAGE(E4:E7) -> 12.0125 | F8: =AVERAGE(F4:F7) -> 12.0125 | G8: =SUM(G4:G7) -> 0.0140679

Sheet AUM
B1: Adaptation des usages aux milieux | F1: ='PTGE Midour Synthèse'!C1 -> le 10/03/2025
B2: AUM1a : Mettre en place un groupe de travail sur le développement de filières durables sur le territoire et alentours
B3: Tâche | C3: Maître d'ouvrage (MO) | D3: Partenaires techniques | E3: Opérateurs | F3: Etat d'avancement | G3: Début | H3: Fin | I3: Commentaires de la ligne | J3: Action engagé (MAEC ou autre) | K3: Surface engagé (ha) | L3: Montant engagé (€) | M3: Vol d'eau économisé/ha | N3: Economie d'eau attendue (Mm3) | O3: FC | P3: E² (Mm3) | Q3: Progression (%) | R3: Commentaire général | U3: #DBDBDB | V3: Non démarré | W3: Action non initiée / qui découle de l'avancement d'une préalable pour être démarrée
B4: à définir | C4: IA | D4: Ensemble des acteurs du territoire | E4: Ensemble des acteurs du territoire, | F4: Non démarré | I4: après AUM1 b c d | N4: 0 | O4: 0 | P4: =N4*O4 -> 0 | Q4: 0 | R4: des éléments dispo chez les partenaires agricoles | U4: #FFCCFF | V4: Engagé | W4: En cours, dans les étapes préliminaires
F5: =Q5 -> 0 | N5: =SUM(N4:N4) -> 0 | O5: =SUM(O4:O4) -> 0 | P5: =SUM(P4:P4) -> 0 | Q5: =AVERAGE(Q4:Q4) -> 0 | U5: #CC66FF | V5: Bien avancé | W5: En cours, plutôt dans les dernières étapes
U6: #A9D08E | V6: Terminée | W6: Pour les actions ponctuelles avec une date de fin
B7: AUM1b : Etude de faisabilité : redynamiser l'élevage en pâturage sur les têtes de bassins et valoriser les systèmes agropastoraux | U7: #DBDBDB | V7: Se poursuit | W7: Action qui a vocation à durer dans le temps / Sans date de fin
B8: Tâche | C8: Maître d'ouvrage (MO) | D8: Partenaires techniques | E8: Opérateurs | F8: Etat d'avancement | G8: Début | H8: Fin | I8: Commentaires de la ligne | J8: Action engagé (MAEC ou autre) | K8: Surface engagé (ha) | L8: Montant engagé (€) | M8: Vol d'eau récupéré | N8: Economie d'eau attendue (Mm3) | O8: FC | P8: E² (Mm3) | Q8: Progression (%) | R8: Commentaire général
B9: Conception de l'étude | C9: ADASEA, Vivadour, CA32 | D9: AUM1a, CERFRANCE, AGROBIO40, Bio du Gers | E9: ADASEA, CA32, | F9: Terminée | G9: 2023-07-01 | H9: 31/06/2024 | N9: 0 | O9: 0 | P9: =N9*O9 -> 0 | Q9: 90 | R9: des éléments via les MAEC mises en place, axe de travail à poursuivre avec les partenaires agricoles
B10: Objectif 2028 : 100% des parcours volaille végétalisés => Maïsadour | C10: Maïsadour | E10: ADASEA, CA32, | F10: Bien avancé | G10: 2024-07-01 | H10: 31/06/2025 | P10: =N10*O10 -> 0 | Q10: 80 | R10: D'après AC (Maïsadour) le 07/03/2025
B11: Mise en place d'un GT pour proposer des actions au regard des résultats | E11: ADASEA, CA32, | F11: Engagé | G11: 2025-07-01 | H11: 2025-12-31 | P11: =N11*O11 -> 0 | Q11: 20 | R11: Faire le lien avec autre démarche territoriale en cours par ADASEA (équipe Life Coteaux Gascons) sur les actions mises en place dont la finalité est la même.
B12: OC_MIDO_HBV2 | D12: CA32 | E12: Institution Adour | F12: Se poursuit | J12: OC_MIDO_HBV2 | K12: =[1]OC_HBV2!$J$26 -> 1438.56 | L12: =[1]OC_HBV2!$K$26 -> 932356.75 | M12: =[1]OC_HBV2!$L$16 -> 0 | N12: =[1]OC_HBV2!$M$16 -> 0 | O12: 1 | P12: =N12*O12 -> 0 | Q12: 60 | R12: Bilan surfaces et montants engagés en 2023 et 2024 (mettre à jour avec 2025 en juin/juillet)
B13: OC_MIDO_HBV3 | D13: CA32 | E13: Institution Adour | F13: Se poursuit | J13: OC_MIDO_HBV3 | K13: =[1]OC_HBV3!$J$19 -> 1032.29 | L13: =[1]OC_HBV3!$K$19 -> 806783.9 | M13: =[1]OC_HBV3!$L$15 -> 0 | N13: =[1]OC_HBV3!$M$15 -> 0 | O13: 1 | P13: 0 | Q13: 60 | R13: Bilan surfaces et montants engagés en 2023 et 2024 (mettre à jour avec 2025 en juin/juillet)
O14: 1 | P14: 0
F15: =Q15 -> 62 | K15: =SUM(K12:K14) -> 2470.85 | L15: =SUM(L12:L14) -> 1739140.65 | N15: =SUM(N9:N9) -> 0 | P15: =SUM(P9:P9) -> 0 | Q15: =AVERAGE(Q9:Q13) -> 62
B17: AUM1c : Etude de faisabilité : filières de valorisation des intercultures, des pratiques de conservation des sols et d'agroforesterie
B18: Tâche | C18: Maître d'ouvrage (MO) | D18: Partenaires techniques | E18: Opérateurs | F18: Etat d'avancement | G18: Début | H18: Fin | I18: Commentaires de la ligne | J18: Action engagé (MAEC ou autre) | K18: Surface engagé (ha) | L18: Montant engagé (€) | M18: Vol d'eau récupéré (mm/ha) | N18: Economie d'eau attendue (Mm3) | O18: FC | P18: E² (Mm3) | Q18: Progression (%) | R18: Commentaire général
B19: NA_MI40_FER2 | C19: Maïsadour, Vivadour, CA32, CA40, AFAF | D19: CA40 | E19: Institution Adour | F19: Engagé | G19: 2024-05-15 | H19: 2029-05-14 | J19: NA_MI40_FER2 | K19: =[1]NA_FER2!$J$8 -> 21.8 | L19: =[1]NA_FER2!$K$8 -> 14824 | M19: =[1]NA_FER2!$L$8 -> 0 | N19: =[1]NA_FER2!$M$8 -> 0 | O19: 1 | P19: =N19*O19 -> 0 | Q19: 60 | R19: des éléments dispo chez les partenaires agricoles
B20: OC_MIDO_COV2 | D20: CA32 | E20: Institution Adour | F20: Engagé | G20: 2023-05-15 | H20: 2028-05-14 | J20: OC_MIDO_COV2 | K20: =[1]OC_COV2!$J$8 -> 156.31 | L20: =[1]OC_COV2!$K$8 -> 100000 | M20: =[1]OC_COV2!$L$8 -> 180 | N20: =[1]OC_COV2!$M$8 -> 0.0140679 | O20: 1 | P20: =N20*O20 -> 0.0140679 | Q20: 60
B21: OC_MIDO_SDC1 | D21: CA32 | E21: Institution Adour | F21: Engagé | G21: 2023-05-15 | H21: 2028-05-14 | J21: OC_MIDO_SDC1 | K21: =[1]OC_SDC1!$J$10 -> 180.02 | L21: =[1]OC_SDC1!$K$10 -> 50000 | M21: =[1]OC_SDC1!$L$10 -> 0 | N21: =[1]OC_SDC1!$M$10 -> 0 | O21: 1 | P21: 0 | Q21: 60
B22: OC_MIDO_VIT1 | D22: CA32 | E22: Institution Adour | F22: Engagé | G22: 2023-05-15 | H22: 2028-05-14 | J22: OC_MIDO_VIT1 | K22: =[1]OC_VIT1!$J$9 -> 38.85 | L22: =[1]OC_VIT1!$K$9 -> 61577.3 | M22: =[1]OC_VIT1!$L$9 -> 0 | N22: =[1]OC_VIT1!$M$9 -> 0 | O22: 1 | P22: 0 | Q22: 60
B23: NA_MI40_EAU2 | D23: CA40 | E23: Institution Adour | F23: Engagé | G23: 2024-05-15 | H23: 2029-05-14 | J23: NA_MI40_EAU2 | K23: =[1]NA_EAU2!$J$8 -> 40 | L23: =[1]NA_EAU2!$K$8 -> 42000 | M23: =[1]NA_EAU2!$L$8 -> 0 | N23: =[1]NA_EAU2!$M$8 -> 0 | O23: 1 | P23: =N23*O23 -> 0 | Q23: 20
F26: =Q26 -> 52 | K26: =SUM(K19:K25) -> 436.98 | L26: =SUM(L19:L25) -> 268401.3 | N26: =SUM(N19:N25) -> 0.0140679 | P26: =SUM(P19:P25) -> 0.0140679 | Q26: =AVERAGE(Q19:Q25) -> 52
B28: AUM1d : Etudier les débouchés en agriculture biologique
B29: Tâche | C29: Maître d'ouvrage (MO) | D29: Partenaires techniques | E29: Opérateurs | F29: Etat d'avancement | G29: Début | H29: Fin | I29: Commentaires de la ligne | J29: Action engagé (MAEC ou autre) | K29: Surface engagé (ha) | L29: Montant engagé (€) | M29: Vol d'eau récupéré | N29: Economie d'eau attendue (Mm3) | O29: FC | P29: E² (Mm3) | Q29: Progression (%) | R29: Commentaire général
B30: Conception de l'étude | C30: AGROBIO40, Bio du Gers, etc | D30: AUM1a | E30: Bio du Gers, Agrobio 40, | F30: Terminée | G30: 2023-01-01 | H30: 2023-12-31 | I30: Demande de subvention déposée / recrutement alternante pour mener l'étude | N30: 0 | O30: 0 | P30: =N30*O30 -> 0 | Q30: 90 | R30: Etude filière démarrée en 2024 : partenariat entre Agrobio40 et Bios du Gers
B31: Mise en œuvre | C31: Agrobio40 | E31: Bio du Gers, Agrobio 40, | F31: Engagé | G31: 2024-01-01 | H31: 31/06/2025 | I31: Premières rencontres agri en fin 2024 par Auriane Coquin | N31: 0 | O31: 0 | P31: =N31*O31 -> 0 | Q31: 33 | R31: La méthodologie de travail pour l'étude de la filière Bio a été discuté avec l'IA. Un travail d'enquête auprès des acteurs de la filière va débuter 1er trimestre 2025.
B32: Mise en place d'un GT pour proposer des actions au regard des résultats | E32: Bio du Gers, Agrobio 40, | F32: Non démarré | G32: 2025-07-01 | H32: 2025-12-31 | I32: Action ultérieure à CMU4 | N32: 0 | O32: 0 | P32: =N32*O32 -> 0 | Q32: 0 | R32: à suivre après compilation des premiers résultats
F33: =Q33 -> 41 | N33: =SUM(N30:N32) -> 0 | O33: =SUM(O30:O32) -> 0 | P33: =SUM(P30:P32) -> 0 | Q33: =AVERAGE(Q30:Q32) -> 41
B35: AUM2a : Mettre en place et suivre des sites expérimentaux
B36: Tâche | C36: Maître d'ouvrage (MO) | D36: Partenaires techniques | E36: Opérateurs | F36: Etat d'avancement | G36: Début | H36: Fin | I36: Commentaires de la ligne | J36: Action engagé (MAEC ou autre) | K36: Surface engagé (ha) | L36: Montant engagé (€) | M36: Vol d'eau récupéré | N36: Economie d'eau attendue (Mm3) | O36: FC | P36: E² (Mm3) | Q36: Progression (%) | R36: Commentaire général
B37: Groupe travail érosion | C37: SMD | D37: Mairie Mazerolles, CA40 , Mont de Marsan Agglo, SMD, IA, Langevin et Associés, FDCUMA640 ?,AEAG, Arbres & Paysages32, Maïsadour, Agriculteurs, propriétaires | E37: IA, CA40, SMD | F37: Engagé | G37: 2023-05-01 | H37: 2028-12-31 | I37: 4 Sites retenus à l'échelle AEAG, dont 1 sur Midour : BV Larrioucla | N37: 0 | O37: 0 | P37: =N37*O37 -> 0 | Q37: 75 | R37: Projet technique et financier quasi finalisé.
B38: Concertation avec acteurs locaux et préparation dossier subv portage SMD | F38: Engagé | G38: 2023-06-01 | N38: 0 | O38: 0 | P38: =N38*O38 -> 0 | Q38: 40 | R38: Reprise concertation en 2025 avec les acteurs concernés / partenaires.
F39: Non démarré | N39: 0 | O39: 0 | P39: =N39*O39 -> 0 | Q39: 0
F40: =Q40 -> 38.33333333 | N40: =SUM(N37:N39) -> 0 | O40: =SUM(O37:O39) -> 0 | P40: =SUM(P37:P39) -> 0 | Q40: =AVERAGE(Q37:Q39) -> 38.33333333
B42: AUM2b : Instituer des groupes de travail avec des agriculteurs basés sur les sites expérimentaux
B43: Tâche | C43: Maître d'ouvrage (MO) | D43: Partenaires techniques | E43: Opérateurs | F43: Etat d'avancement | G43: Début | H43: Fin | I43: Commentaires de la ligne | J43: Action engagé (MAEC ou autre) | K43: Surface engagé (ha) | L43: Montant engagé (€) | M43: Vol d'eau récupéré | N43: Economie d'eau attendue (Mm3) | O43: FC | P43: E² (Mm3) | Q43: Progression (%) | R43: Commentaire général
B44: Bassin versant de Larrioucla | C44: Animateur technique agricole | D44: Maïsadour, Vivadour, Bio du Gers, AGROBIO40, FD CUMA 640, ALPAD 40, AFAF, CA40, CA32, etc | E44: IA, CA40, | F44: Engagé | G44: 2023-06-01 | I44: Concertation en cours dans le cadre des SFN à Mazerolles ; à répliquer autant de fois que nécessaire. | N44: 0 | O44: 0 | P44: =N44*O44 -> 0 | Q44: 40 | R44: avancées liées à l'action AUM2a
F45: =Q45 -> 40 | N45: =SUM(N44:N44) -> 0 | O45: =SUM(O44:O44) -> 0 | P45: =SUM(P44:P44) -> 0 | Q45: =AVERAGE(Q44:Q44) -> 40
B47: AUM2c : Développer des réseaux d'agriculteurs sur le bassin du Midour
B48: Tâche | C48: Maître d'ouvrage (MO) | D48: Partenaires techniques | E48: Opérateurs | F48: Etat d'avancement | G48: Début | H48: Fin | I48: Commentaires de la ligne | J48: Action engagé (MAEC ou autre) | K48: Surface engagé (ha) | L48: Montant engagé (€) | M48: Vol d'eau récupéré | N48: Economie d'eau attendue (Mm3) | O48: FC | P48: E² (Mm3) | Q48: Progression (%) | R48: Commentaire général
C49: Animateur technique agricole | D49: Maïsadour, Vivadour, Bio du Gers, AGROBIO40, FD CUMA 640, ALPAD 40, AFAF, CA40, CA32, etc | F49: Non démarré | N49: 0 | O49: 0 | P49: =N49*O49 -> 0 | Q49: 0
F50: Non démarré | N50: 0 | O50: 0 | P50: =N50*O50 -> 0 | Q50: 0
F51: Non démarré | N51: 0 | O51: 0 | P51: =N51*O51 -> 0 | Q51: 0
F52: =Q52 -> 0 | N52: =SUM(N49:N51) -> 0 | O52: =SUM(O49:O51) -> 0 | P52: =SUM(P49:P51) -> 0 | Q52: =AVERAGE(Q49:CQ5150) -> 0
B54: AUM2d : Instituer des groupes de travail avec les techniciens agricoles
B55: Tâche | C55: Maître d'ouvrage (MO) | D55: Partenaires techniques | E55: Opérateurs | F55: Etat d'avancement | G55: Début | H55: Fin | I55: Commentaires de la ligne | J55: Action engagé (MAEC ou autre) | K55: Surface engagé (ha) | L55: Montant engagé (€) | M55: Vol d'eau récupéré | N55: Economie d'eau attendue (Mm3) | O55: FC | P55: E² (Mm3) | Q55: Progression (%) | R55: Commentaire général
C56: Animateur technique agricole | D56: Maïsadour, Vivadour, Bio du Gers, AGROBIO40, FD CUMA 640, ALPAD 40, AFAF, CA40, CA32, etc | F56: Non démarré | N56: 0 | O56: 0 | P56: =N56*O56 -> 0 | Q56: 0 | R56: Axe de travail 2025
F57: Non démarré | N57: 0 | O57: 0 | P57: =N57*O57 -> 0 | Q57: 0
F58: Non démarré | N58: 0 | O58: 0 | P58: =N58*O58 -> 0 | Q58: 0
F59: =Q59 -> 0 | N59: =SUM(N56:N58) -> 0 | O59: =SUM(O56:O58) -> 0 | P59: =SUM(P56:P58) -> 0 | Q59: =AVERAGE(Q56:Q58) -> 0
B61: AUM2e : Instaurer une formation continue avec des interventions d'experts à destination de la profession agricole
B62: Tâche | C62: Maître d'ouvrage (MO) | D62: Partenaires techniques | E62: Opérateurs | F62: Etat d'avancement | G62: Début | H62: Fin | I62: Commentaires de la ligne | J62: Action engagé (MAEC ou autre) | K62: Surface engagé (ha) | L62: Montant engagé (€) | M62: Vol d'eau récupéré | N62: Economie d'eau attendue (Mm3) | O62: FC | P62: E² (Mm3) | Q62: Progression (%) | R62: Commentaire général
C63: Animateur technique agricole | D63: Maïsadour, Vivadour, Bio du Gers, AGROBIO40, FD CUMA 640, ALPAD 40, AFAF, CA40, CA32, etc | F63: Non démarré | N63: 0 | O63: 0 | P63: =N63*O63 -> 0 | Q63: 0 | R63: des évènements ont été organisés par partenaires agricoles
F64: Non démarré | N64: 0 | O64: 0 | P64: =N64*O64 -> 0 | Q64: 0
F65: Non démarré | N65: 0 | O65: 0 | P65: =N65*O65 -> 0 | Q65: 0
F66: =Q66 -> 0 | N66: =SUM(N63:N65) -> 0 | O66: =SUM(O63:O65) -> 0 | P66: =SUM(P63:P65) -> 0 | Q66: =AVERAGE(Q63:Q65) -> 0
B68: AUM3a : Mettre en place et suivre des sites expérimentaux
B69: Tâche | C69: Maître d'ouvrage (MO) | D69: Partenaires techniques | E69: Opérateurs | F69: Etat d'avancement | G69: Début | H69: Fin | I69: Commentaires de la ligne | J69: Action engagé (MAEC ou autre) | K69: Surface engagé (ha) | L69: Montant engagé (€) | M69: Vol d'eau récupéré | N69: Economie d'eau attendue (Mm3) | O69: FC | P69: E² (Mm3) | Q69: Progression (%) | R69: Commentaire général
C70: Maïsadour, Vivadour, CA40, CA32, Bio du Gers, Agrobio40, FD CUMA 640, ALPAD 40, etc. | D70: AFAF, etc. | F70: Engagé | I70: en lien avec le projet sur BV de l'Arrioucla (Mazerolles). Pourra être répliqué sur d'autres sites au besoin. | N70: 0 | O70: 0 | P70: =N70*O70 -> 0 | Q70: 20 | R70: Un site (cf. AUM2a) sera à suivre sur plusieurs années si les aménagements se concrétisent sur le BV de l'Arrioucla.
F71: Non démarré | N71: 0 | O71: 0 | P71: =N71*O71 -> 0 | Q71: 0
F72: Non démarré | N72: 0 | O72: 0 | P72: =N72*O72 -> 0 | Q72: 0
F73: =Q73 -> 6.666666667 | N73: =SUM(N70:N72) -> 0 | O73: =SUM(O70:O72) -> 0 | P73: =SUM(P70:P72) -> 0 | Q73: =AVERAGE(Q70:Q72) -> 6.666666667
B75: AUM3b : Instituer des groupes de travail avec des agriculteurs basés sur les sites expérimentaux
B76: Tâche | C76: Maître d'ouvrage (MO) | D76: Partenaires techniques | E76: Opérateurs | F76: Etat d'avancement | G76: Début | H76: Fin | I76: Commentaires de la ligne | J76: Action engagé (MAEC ou autre) | K76: Surface engagé (ha) | L76: Montant engagé (€) | M76: Vol d'eau récupéré | N76: Economie d'eau attendue (Mm3) | O76: FC | P76: E² (Mm3) | Q76: Progression (%) | R76: Commentaire général
C77: Animateur technique agricole (IA) | D77: Maïsadour, Vivadour, Bio du Gers, AGROBIO40, FD CUMA 640, ALPAD 40, AFAF, CA40, CA32, etc | F77: Non démarré | N77: 0 | O77: 0 | P77: =N77*O77 -> 0 | Q77: 0
F78: Non démarré | N78: 0 | O78: 0 | P78: =N78*O78 -> 0 | Q78: 0
F79: Non démarré | N79: 0 | O79: 0 | P79: =N79*O79 -> 0 | Q79: 0
F80: =Q80 -> 0 | N80: =SUM(N77:N79) -> 0 | O80: =SUM(O77:O79) -> 0 | P80: =SUM(P77:P79) -> 0 | Q80: =AVERAGE(Q77:Q79) -> 0
B82: AUM4a : Instituer un groupe de travail avec les acteurs du territoire : arbres, haies champêtres, ripisylves
B83: Tâche | C83: Maître d'ouvrage (MO) | D83: Partenaires techniques | E83: Opérateurs | F83: Etat d'avancement | G83: Début | H83: Fin | I83: Commentaires de la ligne | J83: Action engagé (MAEC ou autre) | K83: Surface engagé (ha) | L83: Montant engagé (€) | M83: Vol d'eau récupéré | N83: Economie d'eau attendue (Mm3) | O83: FC | P83: E² (Mm3) | Q83: Progression (%) | R83: Commentaire général
B84: Projet "gestion des paysages" => Trame Verte 32 | C84: AP32, Syndicat Rivière Midour Douze, Syndicat Rivière Midou Douze, EPCI-FP, FDC32 , | D84: Ensemble des acteurs du territoire | E84: FDC32 ; PETR Pays d'Armagnac | F84: Engagé | I84: Démarre mars 2024 : groupe de travail Paysages Midour. Initiative déjà lancée simultanément par partenaires gersois, IA se rattache au COPIL. | N84: 0 | O84: 0 | P84: =N84*O84 -> 0 | Q84: 40 | R84: Démarre mars 2024 : Trame Verte Gers lancée par FDC32 & PETR Pays d'Armagnac sur une grande partie du BV midour gersois.
B85: Projet "gestion des paysages" => Trame Verte 40 | C85: AP32, Syndicat Rivière Midour Douze, Syndicat Rivière Midou Douze, EPCI-FP, FDC32 , | D85: Ensemble des acteurs du territoire | E85: FDC40 ; IA | F85: Engagé | I85: Projet similaire au Trame Verte 32 répliqué sur territoire PTGE Douze et Midour. | N85: 0 | O85: 0 | P85: =N85*O85 -> 0 | Q85: 25 | R85: Trame Verte lancée aout 2024 par FDC40 & IA sur BV Midour et Douze landais. À suivre, avec animations locales.
F86: =Q86 -> 32.5 | N86: =SUM(N84:N85) -> 0 | O86: =SUM(O84:O85) -> 0 | P86: =SUM(P84:P85) -> 0 | Q86: =AVERAGE(Q84:Q85) -> 32.5
B88: AUM4b : Instituer un groupe de travail avec les acteurs du territoire : espaces semi-naturels et milieux humides
B89: Tâche | C89: Maître d'ouvrage (MO) | D89: Partenaires techniques | E89: Opérateurs | F89: Etat d'avancement | G89: Début | H89: Fin | I89: Commentaires de la ligne | J89: Action engagé (MAEC ou autre) | K89: Surface engagé (ha) | L89: Montant engagé (€) | M89: Vol d'eau récupéré | N89: Economie d'eau attendue (Mm3) | O89: FC | P89: E² (Mm3) | Q89: Progression (%) | R89: Commentaire général
B90: Projet "gestion des paysages" | C90: ADASEA, Syndicat Rivière Midour Douze, Syndicat Rivière Midou Douze | D90: Ensemble des acteurs du territoire | F90: Engagé | I90: Démarre mars 2024 : groupe de travail Paysages Midour. | N90: 0 | O90: 0 | P90: =N90*O90 -> 0 | Q90: 20 | R90: Démarre mars 2024 : Trame Verte Gers lancée par FDC32 & PETR Pays d'Armagnac sur une grande partie du BV midour gersois. Trame Verte lancée aout 2024 par FDC40 & IA sur BV Midour et Douze landais. À suivre, avec animations locales. Reboucler avec Life Coteaux Gascons pour suivi des actions réalisées.
F91: Non démarré | N91: 0 | O91: 0 | P91: =N91*O91 -> 0 | Q91: 0
F92: Non démarré | N92: 0 | O92: 0 | P92: =N92*O92 -> 0 | Q92: 0
F93: =Q93 -> 6.666666667 | N93: =SUM(N90:N92) -> 0 | O93: =SUM(O90:O92) -> 0 | P93: =SUM(P90:P92) -> 0 | Q93: =AVERAGE(Q90:Q92) -> 6.666666667
B95: AUM4c : Aménager le bassin versant des plans d'eau pour limiter l'érosion et leur envasement
B96: Tâche | C96: Maître d'ouvrage (MO) | D96: Partenaires techniques | E96: Opérateurs | F96: Etat d'avancement | G96: Début | H96: Fin | I96: Commentaires de la ligne | J96: Action engagé (MAEC ou autre) | K96: Surface engagé (ha) | L96: Montant engagé (€) | M96: Vol d'eau récupéré | N96: Economie d'eau attendue (Mm3) | O96: FC | P96: E² (Mm3) | Q96: Progression (%) | R96: Commentaire général
B97: Projet "gestion des paysages" | C97: Collectivités, agriculteurs, syndicats, etc | D97: Acteurs du PTGE et autres acteurs locaux | E97: FDC32/ CAUE/ CD32/ PETR Pays d'Armagnac/ SMD/ SMBVMD, | F97: Se poursuit | G97: 2024-03-01 | H97: 2024-12-31 | I97: Action ultérieure à CMU4 | N97: 0 | O97: 0 | P97: =N97*O97 -> 0 | Q97: 33 | R97: Action ultérieure à CMU4
F98: =Q98 -> 33 | N98: =SUM(N97:N97) -> 0 | O98: =SUM(O97:O97) -> 0 | P98: =SUM(P97:P97) -> 0 | Q98: =AVERAGE(Q97:Q97) -> 33

Sheet OGRM_résumé
A1: OGRM - Adaptation des usages aux milieux | F1: ='PTGE Midour Synthèse'!C1 -> le 10/03/2025
A3: Code | B3: Tâche | C3: Actions à réaliser au préalable | D3: Actions qui en dépendent ou en lien | E3: Etat d'avancement | F3: Progression | G3: E² (Mm3) | H3: Objectif PTGE 2035 | I3: Commentaires
A4: OGRM-1 | B4: Améliorer la gestion et l'utilisation des ressources et des milieux | D4: CMU4, MRC2d | E4: =AVERAGE(OGRM!F6,OGRM!F12,OGRM!F18,OGRM!F24) -> 30.75 | F4: =AVERAGE(OGRM!P6,OGRM!P12,OGRM!P18,OGRM!P24) -> 30.75 | G4: =SUM(OGRM!O6,OGRM!O12,OGRM!O18,OGRM!O24) -> 0 | I4: Landes (40) : 205 plans d’eau sur le territoire ; Situation réglementaire des plans d’eau régularisée (sauf cas particuliers) Gers (32) : à préciser.
A5: OGRM-2 | B5: Optimiser la gestion des réservoirs de soutien d'étiage | E5: =AVERAGE(OGRM!F30,OGRM!F36,OGRM!F42,OGRM!F49) -> 86.25 | F5: =AVERAGE(OGRM!P30,OGRM!P36,OGRM!P42,OGRM!P49) -> 86.25 | G5: =SUM(OGRM!O30,OGRM!O36,OGRM!O42,OGRM!O49) -> 0 | I5: un groupe de travail a démarré, le travail doit se poursuivre en 2025, selon les disponibilités des participants au groupe.
A6: OGRM-3 | B6: Economiser l'eau en irrigation agricole | E6: =AVERAGE(OGRM!F55,OGRM!F61,OGRM!F67,OGRM!F73) -> 40 | F6: =AVERAGE(OGRM!P55,OGRM!P61,OGRM!P67,OGRM!P73) -> 40 | G6: =SUM(OGRM!O55,OGRM!O61,OGRM!O67,OGRM!O73) -> 0.478 | H6: 3 Mm³ / 9 000 ha avec SHE et OAD 1 000 ha de GG | I6: Plusieurs actions en cours.
A7: OGRM-4 | B7: Améliorer la qualité des rejets anthropiques | C7: CMU1 | E7: =AVERAGE(OGRM!F79,OGRM!F86,OGRM!F93) -> 3.333333333 | F7: =AVERAGE(OGRM!P79,OGRM!P86,OGRM!P93) -> 3.333333333 | G7: =SUM(OGRM!O79,OGRM!O86,OGRM!O93) -> 0 | H7: Adaptation du plan de crise au maximum 1 an après la publication finale de l’étude prévue en CMU1 | I7: Considéré comme prioritaire dans le rapport PTGE. Difficultés de mise en place effective.
A8: OGRM-5 | B8: Restaurer le fonctionnement des cours d'eau et les habitats associés | D8: CMU5 | E8: =AVERAGE(OGRM!F117,OGRM!F111,OGRM!F105,OGRM!F99) -> 49.75 | F8: =AVERAGE(OGRM!P117,OGRM!P111,OGRM!P105,OGRM!P99) -> 49.75 | G8: =SUM(OGRM!O117,OGRM!O111,OGRM!O105,OGRM!O99) -> 0 | I8: Echanges réguliers avec syndicats de rivière, des actions en cours.
D9: Avancement moyen OGRM | E9: =AVERAGE(E4:E8) -> 42.01666667 | F9: =AVERAGE(F4:F8) -> 42.01666667 | G9: =SUM(G4:G8) -> 0.478

Sheet OGRM
B1: Optimisation de la gestion des ressources et des milieux | G1: ='PTGE Midour Synthèse'!C1 -> le 10/03/2025
B2: OGRM-1a : Poursuivre la mise en conformité des retenues individuelles
B3: Tâche | C3: Maître d'ouvrage (MO) | D3: Partenaires techniques | E3: Opérateurs | F3: Etat d'avancement | G3: Début | H3: Fin | I3: Commentaires de la ligne | J3: Action engagé (MAEC ou autre) | K3: Surface engagé (ha) | L3: Vol d'eau récupéré | M3: Economie d'eau attendue (Mm3) | N3: FC | O3: E² (Mm3) | P3: Progression (%) | Q3: Commentaire général | T3: #DBDBDB | U3: Non démarré | V3: Action non initiée / qui découle de l'avancement d'une préalable pour être démarrée
B4: Mise en conformité plans d'eau | C4: DDTM40, DDT32, VIVADOUR | D4: IA, CACG | E4: DDT(M) | F4: Bien avancé | G4: 2022-01-01 | H4: 2028-12-31 | I4: Les dossiers restants sont des dossiers complexes. Les autres sont mis en conformité. | M4: 0 | N4: 1 | O4: =M4*N4 -> 0 | P4: 90 | Q4: Landes (40) : 205 plans d’eau sur le territoire ; Situation réglementaire des plans d’eau régularisée (sauf cas particuliers) Gers (32) : à préciser | T4: #FFCCFF | U4: Engagé | V4: En cours, dans les étapes préliminaires
T5: #CC66FF | U5: Bien avancé | V5: En cours, plutôt dans les dernières étapes
F6: =P6 -> 90 | M6: =SUM(M4:M5) -> 0 | N6: =SUM(N4:N5) -> 1 | O6: =SUM(O4:O5) -> 0 | P6: =AVERAGE(P4:P5) -> 90 | T6: #A9D08E | U6: Terminée | V6: Pour les actions ponctuelles avec une date de fin
T7: #A9D08E | U7: Se poursuit | V7: Action qui a vocation à durer dans le temps / Sans date de fin
B8: OGRM-1b : Travailler à la valorisation des retenues sans usage
B9: Tâche | C9: Maître d'ouvrage (MO) | D9: Partenaires techniques | E9: Opérateurs | F9: Etat d'avancement | G9: Début | H9: Fin | I9: Commentaires de la ligne | J9: Action engagé (MAEC ou autre) | K9: Surface engagé (ha) | L9: Vol d'eau récupéré | M9: Economie d'eau attendue (Mm3) | N9: FC | O9: E² (Mm3) | P9: Progression (%) | Q9: Commentaire général
C10: Services Etat, Irrigadour, CA, Vivadour, IA | D10: IA, CACG | F10: Engagé | G10: 2023-07-01 | H10: 2026-07-15 | M10: 0 | N10: 0 | O10: =M10*N10 -> 0 | P10: 33 | Q10: un groupe de travail a démarré, le travail doit se poursuivre en 2025, selon les disponibilités des participants au groupe.
F12: =P12 -> 33 | M12: =SUM(M10:M11) -> 0 | N12: =SUM(N10:N11) -> 0 | O12: =SUM(O10:O11) -> 0 | P12: =AVERAGE(P10:P11) -> 33
B14: OGRM-1c : Reconquérir la capacité de stockage des plans d'eau
B15: Tâche | C15: Maître d'ouvrage (MO) | D15: Partenaires techniques | E15: Opérateurs | F15: Etat d'avancement | G15: Début | H15: Fin | I15: Commentaires de la ligne | J15: Action engagé (MAEC ou autre) | K15: Surface engagé (ha) | L15: Vol d'eau récupéré | M15: Economie d'eau attendue (Mm3) | N15: FC | O15: E² (Mm3) | P15: Progression (%) | Q15: Commentaire général
B16: étude des retenues | C16: ASA du frêche Saint-Vidou, IA | D16: CA32, CA40, Vivadour | F16: Non démarré | I16: Pas de besoins (bathy faite) sur les ouvrages IA. Ouvrages privés ? | M16: 0 | N16: 0 | O16: =M16*N16 -> 0 | P16: 0 | Q16: prestations bathymétrie par partenaires : nb de plans d'eau sondés ?
B17: volume de stockage remobilisé | F17: Non démarré
F18: =P18 -> 0 | M18: =SUM(M16:M17) -> 0 | N18: =SUM(N16:N17) -> 0 | O18: =SUM(O16:O17) -> 0 | P18: =AVERAGE(P16:P17) -> 0
B20: OGRM-1d : Intégrer les prélèvements en nappes influençant les cours d'eau dans la gestion
B21: Tâche | C21: Maître d'ouvrage (MO) | D21: Partenaires techniques | E21: Opérateurs | F21: Etat d'avancement | G21: Début | H21: Fin | I21: Commentaires de la ligne | J21: Action engagé (MAEC ou autre) | K21: Surface engagé (ha) | L21: Vol d'eau récupéré | M21: Economie d'eau attendue (Mm3) | N21: FC | O21: E² (Mm3) | P21: Progression (%) | Q21: Commentaire général
C22: DDTM40 | D22: IA, CA40, Irrigadour | F22: Non démarré | I22: Action CMU1 préalable | M22: 0 | N22: 0 | O22: =M22*N22 -> 0 | P22: 0 | Q22: Adaptation du plan de crise au maximum 1 an après la publication finale de l’étude prévue en CMU1.
F24: =P24 -> 0 | M24: =SUM(M22:M23) -> 0 | N24: =SUM(N22:N23) -> 0 | O24: =SUM(O22:O23) -> 0 | P24: =AVERAGE(P22:P23) -> 0
B26: OGRM-2a : Systématiser la transmission d'informations entre irrigants et gestionnaire
B27: Tâche | C27: Maître d'ouvrage (MO) | D27: Partenaires techniques | E27: Opérateurs | F27: Etat d'avancement | G27: Début | H27: Fin | I27: Commentaires de la ligne | J27: Action engagé (MAEC ou autre) | K27: Surface engagé (ha) | L27: Vol d'eau récupéré | M27: Economie d'eau attendue (Mm3) | N27: FC | O27: E² (Mm3) | P27: Progression (%) | Q27: Commentaire général
B28: déclaration des prélèvements par anticipation : SMS | C28: IA | D28: CACG, Irrigadour, CA40, CA32 | F28: Se poursuit | I28: après CMU5 ; OGRM2b | M28: 0 | N28: 0 | O28: =M28*N28 -> 0 | P28: 75 | Q28: SMS irrigants : poursuivre efforts de sensibilisation pour meilleure anticipation de la gestion de la ressource par le gestionnaire. Campagne de demande de besoins Irrigadour renouvelée chaque année : taux de retour proche 80%. Quel traitement des données est fait ?
B29: déclaration des prélèvements par anticipation : application "intention d'irriguer" | C29: IA | D29: Rives&Eaux du Sud-Ouest (CACG) | F29: Engagé | Q29: application développée en 2021-22 sur les sous-bassins Bahus et Midour, dans le cadre de l'appel à projets "Economies d'eau en agriculture" proposé par l'agence de l'eau Adour-Garonne ; déploiement généralisé sur tous les axes réalimentés depuis 2024
F30: =P30 -> 75 | M30: =SUM(M28:M29) -> 0 | N30: =SUM(N28:N29) -> 0 | O30: =SUM(O28:O29) -> 0 | P30: =AVERAGE(P28:P29) -> 75
B32: OGRM-2b : Equiper les irrigants en cours d'eau avec des compteurs communicants
B33: Tâche | C33: Maître d'ouvrage (MO) | D33: Partenaires techniques | E33: Opérateurs | F33: Etat d'avancement | G33: Début | H33: Fin | I33: Commentaires de la ligne | J33: Action engagé (MAEC ou autre) | K33: Surface engagé (ha) | L33: Vol d'eau récupéré | M33: Economie d'eau attendue (Mm3) | N33: FC | O33: E² (Mm3) | P33: Progression (%) | Q33: Commentaire général
B34: Proposition / information sur les compteurs aux irrigants | C34: IA | D34: OU, CACG-TSE, DDT32, DDTM40 | F34: Terminée | G34: 2020-01-01 | H34: 2022-12-31 | I34: après CMU5 ; OGRM2a | M34: 0 | N34: 0 | O34: =M34*N34 -> 0 | P34: 90 | Q34: Points de prélèvements les plus importants équipés en 2024, la plupart des autres équipés en 2025 et les tout derniers en 2026.
B35: Commande d'équipements | F35: Engagé | G35: 2023-01-01 | H35: 2028-12-31 | P35: 50
F36: =P36 -> 70 | M36: =SUM(M34:M35) -> 0 | N36: =SUM(N34:N35) -> 0 | O36: =SUM(O34:O35) -> 0 | P36: =AVERAGE(P34:P35) -> 70
B38: OGRM-2c : Mettre en œuvre des doubles valeurs de débits consignes aux stations de gestion
B39: Tâche | C39: Maître d'ouvrage (MO) | D39: Partenaires techniques | E39: Opérateurs | F39: Etat d'avancement | G39: Début | H39: Fin | I39: Commentaires de la ligne | J39: Action engagé (MAEC ou autre) | K39: Surface engagé (ha) | L39: Vol d'eau récupéré | M39: Economie d'eau attendue (Mm3) | N39: FC | O39: E² (Mm3) | P39: Progression (%) | Q39: Commentaire général
B40: Mise en place effective | C40: IA | D40: DDT32, DDTM40, CACG | F40: Terminée | I40: ACI 7 aout 2023 | M40: 0 | N40: 0 | O40: =M40*N40 -> 0 | P40: 100 | Q40: ACI (arrete cadre interdépartemental) n° 2023-1039 du 7 aout 2023 intègre les modalités de cette souplesse de gestion en introduisant 4 valeurs à chaque point objectif de gestion
F42: =P42 -> 100 | M42: =SUM(M40:M41) -> 0 | N42: =SUM(N40:N41) -> 0 | O42: =SUM(O40:O41) -> 0 | P42: =AVERAGE(P40:P41) -> 100
B44: OGRM-2d : Continuer et valoriser la gestion anticipée des tours d'eau sur le territoire
B45: Tâche | C45: Maître d'ouvrage (MO) | D45: Partenaires techniques | E45: Opérateurs | F45: Etat d'avancement | G45: Début | H45: Fin | I45: Commentaires de la ligne | J45: Action engagé (MAEC ou autre) | K45: Surface engagé (ha) | L45: Vol d'eau récupéré | M45: Economie d'eau attendue (Mm3) | N45: FC | O45: E² (Mm3) | P45: Progression (%) | Q45: Commentaire général
B46: Intégrer ce type de gestion aux arrétés interpréfectoraux | C46: IA | D46: DDT32, DDTM40, Irrigadour, ensemble des membres préleveurs | F46: Terminée | G46: 2022-01-01 | H46: 2022-12-31 | I46: après CMU5 ; OGRM2a ; OGRM2b | M46: 0 | N46: 0 | O46: =M46*N46 -> 0 | P46: 100 | Q46: Les réunions de commission de gestion se poursuivent avant la campagne d'irrigation et pendant la campagne, avec les responsables de secteur à fréquence une à deux fois par semaine et /ou selon les besoins en cours.
B47: Fréquence d'application de tours d'eau/respect des valeurs consignes | F47: Se poursuit | G47: 2023-01-01 | H47: 2028-12-31 | P47: 100 | Q47: de 2019 à 2023 gestion conforme aux seuils de l’arrêté en vigueur. 2024 : Bilan en cours.
B48: Nombre de jours de défaillance | F48: Se poursuit | G48: 2023-01-01 | H48: 2028-12-31 | P48: 100 | Q48: sur la période de réalimentation : 2019 : Midour aval (Arthez) 0 jour/ Midour aval (Charros) : 5 j / Midour amont (Bourgès, Maribot, Lapeyrie) 16 j (conforme aux seuils de l’arrêté en vigueur en nombre de jours consécutifs) 2020 : Midour aval (Arthez) 0 jour/ Midour aval (Charros) : 3 j / Midour amont (Bourgès, Maribot, Lapeyrie) 3 j (conforme aux seuils de l’arrêté en vigueur en nombre de jours consécutifs) 2021 : Midour aval (Arthez) 0 jour/ Midour aval (Charros) : 0 j / Midour amont (Bourgès, Maribot, Lapeyrie) 16 j (conforme aux seuils de l’arrêté en vigueur en nombre de jours consécutifs) 2022 : Midour aval (Arthez) 3 jours/ Midour aval (Charros) : 14 j / Midour amont (Bourgès, Maribot, Lapeyrie) 14 j (conforme aux seuils de l’arrêté en vigueur en nombre de jours consécutifs) 2023 ; Midour aval (Arthez) 0 jour/ Midour aval (Charros) : 0 j / Midour amont (Bourgès, Maribot, Lapeyrie) 6 j (conforme aux seuils de l’arrêté en vigueur en nombre de jours consécutifs)
F49: =P49 -> 100 | M49: =SUM(M46:M48) -> 0 | N49: =SUM(N46:N48) -> 0 | O49: =SUM(O46:O48) -> 0 | P49: =AVERAGE(P46:P48) -> 100
B51: OGRM-3a : Mettre en place et suivre des sites expérimentaux
B52: Tâche | C52: Maître d'ouvrage (MO) | D52: Partenaires techniques | E52: Opérateurs | F52: Etat d'avancement | G52: Début | H52: Fin | I52: Commentaires de la ligne | J52: Action engagé (MAEC ou autre) | K52: Surface engagé (ha) | L52: Vol d'eau récupéré | M52: Economie d'eau attendue (Mm3) | N52: FC | O52: E² (Mm3) | P52: Progression (%) | Q52: Commentaire général
C53: IRRIGADOUR, CA40, CA32, Vivadour, Maïsadour, exploitations agricoles, autres acteurs agricoles | F53: Non démarré | I53: difficultés de financement de l'équipement | M53: 0 | N53: 0 | O53: =M53*N53 -> 0 | P53: 0
F55: =P55 -> 0 | M55: =SUM(M53:M54) -> 0 | N55: =SUM(N53:N54) -> 0 | O55: =SUM(O53:O54) -> 0 | P55: =AVERAGE(P53:P54) -> 0
B57: OGRM-3b : Instituer des groupes de travail et des formations avec des agriculteurs
B58: Tâche | C58: Maître d'ouvrage (MO) | D58: Partenaires techniques | E58: Opérateurs | F58: Etat d'avancement | G58: Début | H58: Fin | I58: Commentaires de la ligne | J58: Action engagé (MAEC ou autre) | K58: Surface engagé (ha) | L58: Vol d'eau récupéré | M58: Economie d'eau attendue (Mm3) | N58: FC | O58: E² (Mm3) | P58: Progression (%) | Q58: Commentaire général
B59: Constituer des groupes de travail | C59: Animateur technique agricole | D59: Maïsadour, Vivadour, CA40, CA32, Bio du Gers, AGROBIO40, FD CUMA 640, ALPAD 40, AFAF, Irrigadour | F59: Non démarré | I59: après OGRM3a | M59: 0 | N59: 0 | O59: =M59*N59 -> 0 | P59: 0 | Q59: Des actions réalisées par les partenaires agricoles
B60: Agriculteurs engagés | F60: Non démarré | P60: 20 | Q60: Des contacts pris pour formation OAD / pilotage irrigation
F61: =P61 -> 10 | M61: =SUM(M59:M60) -> 0 | N61: =SUM(N59:N60) -> 0 | O61: =SUM(O59:O60) -> 0 | P61: =AVERAGE(P59:P60) -> 10
B63: OGRM-3c : Acquisition de systèmes de gestion et d'outils d'aide à la décision en irrigation
B64: Tâche | C64: Maître d'ouvrage (MO) | D64: Partenaires techniques | E64: Opérateurs | F64: Etat d'avancement | G64: Début | H64: Fin | I64: Commentaires de la ligne | J64: Action engagé (MAEC ou autre) | K64: Surface engagé (ha) | L64: Vol d'eau récupéré | M64: Economie d'eau attendue (Mm3) | N64: FC | O64: E² (Mm3) | P64: Progression (%) | Q64: Commentaire général
B65: Project GG (AAP EEE Economie et etfficience de l'eau) | C65: CA 40 | D65: Vivadour, Maïsadour, CA32, CA40, etc | E65: CA40 | F65: Bien avancé | G65: 2023-11-01 | H65: 2026-07-31 | I65: fin du projet en 2026. l'état des lieux précise que 5000ha irrigués enquétes (1/4 des EA du BV) ont déjà des pratiques vertueuses relatant des économies d'eau à hauteur de 442000 m3 | L65: 442000 | M65: 0.442 | N65: 1 | O65: =M65*N65 -> 0.442 | P65: 75 | Q65: selon les AAP en cours, difficultés de financement du matériel 2022: 1 exploitation 2023: 2 exploitations + AAP écod'eau GAG 1 recrutement (CA40) 2024 : 77 EA enquêtées représentant 5000 ha irrigués ; 7 projets déposés pour 124 ha en GàG (40ha en GC / 8ha vignes / 72 ha noisettes / 4 ha Maraichage) D'après le travail d'enquête auprès des agriculteurs du MIdour de la CA40 dans le cadre de l'AAP Economie et efficience de l'eau"*, 18 % des exploitations enquêtées ne possèdent ni matériels d’irrigation, ni OAD, ni système de télégestion. 51 % ont au moins un matériel d’irrigation hydro-économe, 3 % ont seulement un OAD pour le pilotage de l’irrigation, 18 % combinent au moins un matériel d’irrigation hydro-économe avec un OAD, 6 % combinent au moins un matériel d’irrigation hydro-économe avec un système de télégestion et 4 % combinent au moins un matériel d’irrigation hydro-économe avec un OAD et un système de télégestion. Cela représente, 21 % des surfaces irriguées sans matériels hydro-économe, ni OAD, ni système de télégestion. 29 agriculteurs enquêtés, soit 38 %, sont intéressés par l’acquisition de matériel hydroéconome et/ou OAD et/ou système de télégestion. Le bilan provisoir de l'enquête indique un total d'économie de 442 000M3, soit 8% du volume moyen utilise grâce au matériel d'irrigation actuel. * Cette enquête a été réalisée auprès de 77 exploitations, soit 25% des agriculteurs irriguants du Midour pour 5 000 ha irrigués soit 1/3 des surfaces irriguées autorisées sur le BV Midour L'enquête se poursuit à ce jour
F67: =P67 -> 75 | M67: =SUM(M65:M66) -> 0.442 | N67: =SUM(N65:N66) -> 1 | O67: =SUM(O65:O66) -> 0.442 | P67: =AVERAGE(P65:P66) -> 75
B69: OGRM-3d : Acquisition de matériels d'irrigation hydro-performants
B70: Tâche | C70: Maître d'ouvrage (MO) | D70: Partenaires techniques | E70: Opérateurs | F70: Etat d'avancement | G70: Début | H70: Fin | I70: Commentaires de la ligne | J70: Action engagé (MAEC ou autre) | K70: Surface engagé (ha) | L70: Vol d'eau récupéré | M70: Economie d'eau attendue (Mm3) | N70: FC | O70: E² (Mm3) | P70: Progression (%) | Q70: Commentaire général
B71: Project GG (AAP EEE) | C71: CA 40 | D71: Vivadour, Maïsadour, CA32, CA40, Irrigadour etc | E71: CA40, | F71: Bien avancé | G71: 2023-11-01 | H71: 2026-07-31 | I71: L'AAP Economie et efficience de l'eau de la CA 40 est toujours en cours | K71: 124 | M71: 0.036 | N71: 1 | O71: =M71*N71 -> 0.036 | P71: 75 | Q71: selon les AAP en cours, difficultés de financement du matériel 2022: 1 exploitation 2023: 2 exploitations + AAP écod'eau GAG 1 recrutement (CA40) 2024 : 77 EA enquêtées représentant 5000 ha irrigués ; 7 projets déposés pour 124 ha en GàG (40ha en GC / 8ha vignes / 72 ha noisettes / 4 ha Maraichage) D'après le travail d'enquête auprès des agriculteurs du MIdour de la CA40 dans le cadre de l'AAP Economie et efficience de l'eau"*, 18 % des exploitations enquêtées ne possèdent ni matériels d’irrigation, ni OAD, ni système de télégestion. 51 % ont au moins un matériel d’irrigation hydro-économe, 3 % ont seulement un OAD pour le pilotage de l’irrigation, 18 % combinent au moins un matériel d’irrigation hydro-économe avec un OAD, 6 % combinent au moins un matériel d’irrigation hydro-économe avec un système de télégestion et 4 % combinent au moins un matériel d’irrigation hydro-économe avec un OAD et un système de télégestion. Cela représente, 21 % des surfaces irriguées sans matériels hydro-économe, ni OAD, ni système de télégestion. 29 agriculteurs enquêtés, soit 38 %, sont intéressés par l’acquisition de matériel hydroéconome et/ou OAD et/ou système de télégestion. Le bilan provisoir de l'enquête indique un total d'économie de 442 000M3, soit 8% du volume moyen utilise grâce au matériel d'irrigation actuel. *Cette enquête a été réalisée auprès de 77 exploitations, soit 25% des agriculteurs irriguants du Midour pour 5 000 ha irrigués soit 1/3 des surfaces irriguées autorisées sur le BV Midour L'enquête se poursuit à ce jour
F73: =P73 -> 75 | M73: =SUM(M71:M72) -> 0.036 | N73: =SUM(N71:N72) -> 1 | O73: =SUM(O71:O72) -> 0.036 | P73: =AVERAGE(P71:P72) -> 75
B75: OGRM-4a : Réaliser des chantiers collectifs pour la mise aux normes de l'ANC
B76: Tâche | C76: Maître d'ouvrage (MO) | D76: Partenaires techniques | E76: Opérateurs | F76: Etat d'avancement | G76: Début | H76: Fin | I76: Commentaires de la ligne | J76: Action engagé (MAEC ou autre) | K76: Surface engagé (ha) | L76: Vol d'eau récupéré | M76: Economie d'eau attendue (Mm3) | N76: FC | O76: E² (Mm3) | P76: Progression (%) | Q76: Commentaire général
B77: Systèmes ANC remplacés | C77: Collectivités (SPANC notamment) | F77: Engagé | M77: 0 | N77: 0 | O77: =M77*N77 -> 0 | P77: 10 | Q77: Considéré comme prioritaire dans le rapport PTGE ⇒ dans les 5 premières années de mise en œuvre Courrier préparé, envoi à faire.
F79: =P79 -> 10 | M79: =SUM(M77:M78) -> 0 | N79: =SUM(N77:N78) -> 0 | O79: =SUM(O77:O78) -> 0 | P79: =AVERAGE(P77:P78) -> 10
B81: OGRM-4b : Créer des milieux humides à vocation épuratoire en sortie de station de traitements des eaux usées
B82: Tâche | C82: Maître d'ouvrage (MO) | D82: Partenaires techniques | E82: Opérateurs | F82: Etat d'avancement | G82: Début | H82: Fin | I82: Commentaires de la ligne | J82: Action engagé (MAEC ou autre) | K82: Surface engagé (ha) | L82: Vol d'eau récupéré | M82: Economie d'eau attendue (Mm3) | N82: FC | O82: E² (Mm3) | P82: Progression (%) | Q82: Commentaire général
B83: Identifier des sites, rencontrer les propriétaires | C83: Collectivités gestionnaires de STEU | D83: AP32, ADASEA, Syndicat de rivières Midou Douze, Syndicat de rivières Midour Douze … | F83: Engagé | M83: 0 | N83: 0 | O83: =M83*N83 -> 0 | P83: 0
B84: Aménagements réalisés | F84: Non démarré
B85: évolution qualité de l'eau en aval | F85: Non démarré
F86: =P86 -> 0 | M86: =SUM(M83:M85) -> 0 | N86: =SUM(N83:N85) -> 0 | O86: =SUM(O83:O85) -> 0 | P86: =AVERAGE(P83:P85) -> 0
B88: OGRM-4c : Créer des zones tampons en sortie de réseaux de drainage agricole
B89: Tâche | C89: Maître d'ouvrage (MO) | D89: Partenaires techniques | E89: Opérateurs | F89: Etat d'avancement | G89: Début | H89: Fin | I89: Commentaires de la ligne | J89: Action engagé (MAEC ou autre) | K89: Surface engagé (ha) | L89: Vol d'eau récupéré | M89: Economie d'eau attendue (Mm3) | N89: FC | O89: E² (Mm3) | P89: Progression (%) | Q89: Commentaire général
B90: Identifier des sites, rencontrer les propriétaires | C90: Agriculteurs | D90: AP32, ADASEA, Syndicat de rivières Midou Douze, Syndicat de rivières Midour Douze, organismes agricoles, CA32, CA40, DDTM40, DDT32 | F90: Engagé | I90: à vérifier avec Syndicats rivière | M90: 0 | N90: 0 | O90: =M90*N90 -> 0 | P90: 0
B91: Aménagements réalisés | F91: Non démarré
B92: Evolution qualité de l'eau en aval | F92: Non démarré
F93: =P93 -> 0 | M93: =SUM(M90:M92) -> 0 | N93: =SUM(N90:N92) -> 0 | O93: =SUM(O90:O92) -> 0 | P93: =AVERAGE(P90:P92) -> 0
B95: OGRM-5a : Affiner les zones à prioriser et les actions à réaliser
B96: Tâche | C96: Maître d'ouvrage (MO) | D96: Partenaires techniques | E96: Opérateurs | F96: Etat d'avancement | G96: Début | H96: Fin | I96: Commentaires de la ligne | J96: Action engagé (MAEC ou autre) | K96: Surface engagé (ha) | L96: Vol d'eau récupéré | M96: Economie d'eau attendue (Mm3) | N96: FC | O96: E² (Mm3) | P96: Progression (%) | Q96: Commentaire général
B97: PPG SMBVMD | C97: Riverains, Syndicat de rivières Midou Douze, Syndicat de rivières Midour Douze | D97: BE, AEAG, CD, DDT32, DDTM40, OFB, fédérations de pêche, CA32, CA40, etc | F97: Se poursuit | G97: 2024-03-01 | H97: 2024-12-31 | I97: lié aux PPG des syndicats rivière | M97: 0 | N97: 0 | O97: =M97*N97 -> 0 | P97: 66 | Q97: Cf. Syndicats Rivière
B98: PPG SMD | F98: Se poursuit | G98: 2024-03-01 | H98: 2024-12-31 | I98: lié aux PPG des syndicats rivière | P98: 66
F99: =P99 -> 66 | M99: =SUM(M97:M98) -> 0 | N99: =SUM(N97:N98) -> 0 | O99: =SUM(O97:O98) -> 0 | P99: =AVERAGE(P97:P98) -> 66
B101: OGRM-5b : Mettre en place des zones pilotes sur le territoire
B102: Tâche | C102: Maître d'ouvrage (MO) | D102: Partenaires techniques | E102: Opérateurs | F102: Etat d'avancement | G102: Début | H102: Fin | I102: Commentaires de la ligne | J102: Action engagé (MAEC ou autre) | K102: Surface engagé (ha) | L102: Vol d'eau récupéré | M102: Economie d'eau attendue (Mm3) | N102: FC | O102: E² (Mm3) | P102: Progression (%) | Q102: Commentaire général
B103: Projet SFN sous BV Larrioucla Mazerolles | C103: Syndicat de rivières Midou Douze, Syndicat de rivières Midour Douze | D103: BE, AEAG, CD, DDT32, DDTM40, OFB, fédérations de pêche, CA32, CA40, etc | F103: Bien avancé | G103: 2024-03-01 | H103: 2024-12-31 | I103: lié aux PPG des syndicats rivière Premiers projets pilotes prévus pour 2023 ??? | M103: 0 | N103: 0 | O103: =M103*N103 -> 0 | P103: 50 | Q103: Concertation en cours entre Agglo/AEAG/Commune Mazerolles/agriculteurs concernés/Synd Riv SMD/ CA40 / Maïsadour / Langevin et Associés
F105: =P105 -> 50 | M105: =SUM(M103:M104) -> 0 | N105: =SUM(N103:N104) -> 0 | O105: =SUM(O103:O104) -> 0 | P105: =AVERAGE(P103:P104) -> 50
B107: OGRM-5c : Définir les techniques et les outils adaptés pour une restauration à plus grande échelle
B108: Tâche | C108: Maître d'ouvrage (MO) | D108: Partenaires techniques | E108: Opérateurs | F108: Etat d'avancement | G108: Début | H108: Fin | I108: Commentaires de la ligne | J108: Action engagé (MAEC ou autre) | K108: Surface engagé (ha) | L108: Vol d'eau récupéré | M108: Economie d'eau attendue (Mm3) | N108: FC | O108: E² (Mm3) | P108: Progression (%) | Q108: Commentaire général
C109: IA et/ou Syndicat de rivières Midou Douze, Syndicat de rivières Midour Douze | D109: BE, AEAG, CD, DDT32, DDTM40, OFB, fédérations de pêche, CA32, CA40, etc | F109: Engagé | G109: 2024-03-01 | H109: 2024-12-31 | I109: lié aux PPG des syndicats rivière - démarche en cours de lancement pour début mars 2024 avec Synd. Riv + PETR + AP32 + FDC32 | M109: 0 | N109: 0 | O109: =M109*N109 -> 0 | P109: 33 | Q109: Echanges réguliers avec syndicats de rivière
F111: =P111 -> 33 | M111: =SUM(M109:M110) -> 0 | N111: =SUM(N109:N110) -> 0 | O111: =SUM(O109:O110) -> 0 | P111: =AVERAGE(P109:P110) -> 33
B113: OGRM-5d : Travailler à l'effacement des seuils de pompage en rivière
B114: Tâche | C114: Maître d'ouvrage (MO) | D114: Partenaires techniques | E114: Opérateurs | F114: Etat d'avancement | G114: Début | H114: Fin | I114: Commentaires de la ligne | J114: Action engagé (MAEC ou autre) | K114: Surface engagé (ha) | L114: Vol d'eau récupéré | M114: Economie d'eau attendue (Mm3) | N114: FC | O114: E² (Mm3) | P114: Progression (%) | Q114: Commentaire général
B115: Recensement des seuils | C115: IA, Syndicat de rivières Midou Douze, Syndicat de rivières Midour Douze Travaux : propriétaires de seuils et SIAG Ludon/gaube, ASA | D115: DDT32, DDTM40, OFB, Fédérations de pêches, AAPMA, CA32, CA40, AEAG, CD | F115: Bien avancé | G115: 2024-03-01 | H115: 2024-12-31 | I115: lié aux PPG des syndicats rivière 2023-2026 : mise en œuvre de manière coordonnée | M115: 0 | N115: 0 | O115: =M115*N115 -> 0 | P115: 75 | Q115: Se poursuit au travers des actions portées par les syndicats. Seuils recensés, cartographiés dans le Gers. Seuils recensés mais non cartographiés dans les Landes.
B116: Effacement/amenagement lorsque pertinent | F116: Engagé | G116: 2024-03-01 | H116: 2028-12-31 | P116: 25 | Q116: à l'opportunité, selon les besoins, la nature des seuils (rustique ou soumis à autorisation tel que pour une pisciculture).
F117: =P117 -> 50 | M117: =SUM(M115:M116) -> 0 | N117: =SUM(N115:N116) -> 0 | O117: =SUM(O115:O116) -> 0 | P117: =AVERAGE(P115:P116) -> 50

Sheet MRC_résumé
A1: MRC - Mobilisation de ressources complémentaires | F1: ='PTGE Midour Synthèse'!C1 -> le 10/03/2025
A3: Code | B3: Tâche | C3: Actions à réaliser au préalable | D3: Actions qui en dépendent ou en lien | E3: Etat d'avancement | F3: Progression | G3: E² (Mm3) | H3: Objectif PTGE 2035 | I3: Commentaires
A4: MRC-1 | B4: Utiliser et réutiliser durablement la ressource en eau | D4: CMU4, MRC2d | E4: =AVERAGE(MRC!F7,MRC!F13) -> 20.75 | F4: =AVERAGE(MRC!P7,MRC!P13) -> 20.75 | G4: =SUM(MRC!O7,MRC!O13) -> 0 | H4: 2,15 Mm³ (substitution) | I4: Mise en place sur un temps long des actions. Se poursuit
A5: MRC-2 | B5: Gérer le déficit en eau restant en privilégiant l'optimisation des RSE existants | E5: =AVERAGE(MRC!F19,MRC!F25,MRC!F31,MRC!F37,MRC!F43) -> 23.2 | F5: =AVERAGE(MRC!P19,MRC!P25,MRC!P31,MRC!P37,MRC!P43) -> 23.2 | G5: =SUM(MRC!O19,MRC!O25,MRC!O31,MRC!O37,MRC!O43) -> 0 | H5: 3,2 Mm3 (2,1 Mm3 phc + 0,45 cscrh + 0,65 Mm3 rosm) | I5: Mise en place sur un temps long des actions. Se poursuit
D6: Avancement moyen MRC | E6: =AVERAGE(E4:E5) -> 21.975 | F6: =AVERAGE(F4:F5) -> 21.975 | G6: =SUM(G4:G5) -> 0

Sheet MRC
B1: Mobilisation de ressources complémentaires | F1: ='PTGE Midour Synthèse'!C1 -> le 10/03/2025
B2: MRC-1a : Valoriser les eaux de consommation : STEU de Conte, Nogaro et Villeneuve de Marsan
B3: Tâche | C3: Maître d'ouvrage (MO) | D3: Partenaires techniques | E3: Opérateurs | F3: Etat d'avancement | G3: Début | H3: Fin | I3: Commentaires de la ligne | J3: Action engagé (MAEC ou autre) | K3: Surface engagé (ha) | L3: Vol d'eau récupéré | M3: Economie d'eau attendue (Mm3) | N3: FC | O3: E² (Mm3) | P3: Progression (%) | Q3: Commentaire général | T3: #DBDBDB | U3: Non démarré | V3: Action non initiée / qui découle de l'avancement d'une préalable pour être démarrée
B4: Mont de Marsan - Conte | C4: IA, Collectivité gestionnaire de la STEP, CA ou ASAH | D4: CA, SYDEC, Régies des eaux | F4: Bien avancé | G4: 2020-01-01 | H4: 2028-12-31 | I4: groupement de commande pour phases études lancé | M4: 0 | O4: =M4*N4 -> 0 | P4: 50 | Q4: MdM : En phase d'étude et de maitrise d'œuvre. Maitrise d'œuvre lancée en 2022. Elaboration du dossier d'enquête publique prévu pour 2025. Suivi : COPILs réguliers. Échéance : mise en service en 2028 (+1 an) | T4: #FFCCFF | U4: Engagé | V4: En cours, dans les étapes préliminaires
B5: Nogaro | F5: Engagé | G5: 2023-07-01 | H5: 2028-12-31 | I5: sollicitation par la commune pour étude faisabilité et suites possibles | P5: 33 | Q5: Nogaro : en phase d'élaboration des partenariats. Etude préliminaire Chb Agri réalisée. Réunions préliminaires, voir si commune de Nogaro peut/veut poursuivre la démarche ou non selon les contraintes techniques locales : Etude en cours. | T5: #CC66FF | U5: Bien avancé | V5: En cours, plutôt dans les dernières étapes
B6: Villeneuve de Marsan | F6: Non démarré | T6: #A9D08E | U6: Terminée | V6: Pour les actions ponctuelles avec une date de fin
F7: =P7 -> 41.5 | M7: =SUM(M4:M6) -> 0 | N7: =SUM(N4:N6) -> 0 | O7: =SUM(O4:O6) -> 0 | P7: =AVERAGE(P4:P6) -> 41.5 | T7: #A9D08E | U7: Se poursuit | V7: Action qui a vocation à durer dans le temps / Sans date de fin
B9: MRC-1b : Sensibiliser les industriels sur les possibilités de recyclage de leurs eaux de process
B10: Tâche | C10: Maître d'ouvrage (MO) | D10: Partenaires techniques | E10: Opérateurs | F10: Etat d'avancement | G10: Début | H10: Fin | I10: Commentaires de la ligne | J10: Action engagé (MAEC ou autre) | K10: Surface engagé (ha) | L10: Vol d'eau récupéré | M10: Economie d'eau attendue (Mm3) | N10: FC | O10: E² (Mm3) | P10: Progression (%) | Q10: Commentaire général
C11: IA | D11: CCI, chambres des métiers, AEAG, collectivités | F11: Non démarré | M11: 0 | N11: 0 | O11: =M11*N11 -> 0 | P11: 0
F13: =P13 -> 0 | M13: =SUM(M11:M12) -> 0 | N13: =SUM(N11:N12) -> 0 | O13: =SUM(O11:O12) -> 0 | P13: =AVERAGE(P11:P12) -> 0
B15: MRC-2a : Mettre en place des pompages complémentaires hivernaux pour les RSE de Maribot, Lapeyrie, Charros et Arthez - Axe Midour
B16: Tâche | C16: Maître d'ouvrage (MO) | D16: Partenaires techniques | E16: Opérateurs | F16: Etat d'avancement | G16: Début | H16: Fin | I16: Commentaires de la ligne | J16: Action engagé (MAEC ou autre) | K16: Surface engagé (ha) | L16: Vol d'eau récupéré | M16: Economie d'eau attendue (Mm3) | N16: FC | O16: E² (Mm3) | P16: Progression (%) | Q16: Commentaire général
B17: Pompages complémentaires hivernaux avec maitrise des couts énergétiques | C17: IA | D17: DDT32, DDTM40 | F17: Engagé | I17: après CMU6 ; MRC1 | M17: 0 | N17: 0 | O17: =M17*N17 -> 0 | P17: 50 | Q17: Etudes et maitrise d'œuvre en cours pour les réservoirs de l'Institution Adour.
Q18: 3,2 Mm³ 80 % irrigation / 20 % milieu (dont 0,7 Mm³ dédiés à de la gestion pluri-annuelle)
F19: =P19 -> 50 | M19: =SUM(M17:M18) -> 0 | N19: =SUM(N17:N18) -> 0 | O19: =SUM(O17:O18) -> 0 | P19: =AVERAGE(P17:P18) -> 50
B21: MRC-2b : Rehausser les RSE de Maribot et Lapeyrie et créer une (des) retenue(s) déconnectée(s) de substitution - Axe Midour
B22: Tâche | C22: Maître d'ouvrage (MO) | D22: Partenaires techniques | E22: Opérateurs | F22: Etat d'avancement | G22: Début | H22: Fin | I22: Commentaires de la ligne | J22: Action engagé (MAEC ou autre) | K22: Surface engagé (ha) | L22: Vol d'eau récupéré | M22: Economie d'eau attendue (Mm3) | N22: FC | O22: E² (Mm3) | P22: Progression (%) | Q22: Commentaire général
C23: IA | D23: DDT32, DDTM40, OFB | F23: Engagé | M23: 0 | N23: 0 | O23: =M23*N23 -> 0 | P23: 33 | Q23: Travail d'expertise sur les volumes potentiellement mobilisables sur les réservoirs d'ASA à engager en 2025. Etudes préliminaires – études environnementales et techniques sur l’ensemble des ouvrages - en cours de validation par le maître d’ouvrage pour les réhausses. Réunions locales de présentation des projets aux propriétaires et élus à l’automne 2024 Foncier - conventionnement et travail avec les SAFER du Gers et des Landes
F25: =P25 -> 33 | M25: =SUM(M23:M24) -> 0 | N25: =SUM(N23:N24) -> 0 | O25: =SUM(O23:O24) -> 0 | P25: =AVERAGE(P23:P24) -> 33
B27: MRC-2c : Connecter les réseaux d'irrigation aux ouvrages de stockage collectifs dans la mesure du possible - Axe Midour
B28: Tâche | C28: Maître d'ouvrage (MO) | D28: Partenaires techniques | E28: Opérateurs | F28: Etat d'avancement | G28: Début | H28: Fin | I28: Commentaires de la ligne | J28: Action engagé (MAEC ou autre) | K28: Surface engagé (ha) | L28: Vol d'eau récupéré | M28: Economie d'eau attendue (Mm3) | N28: FC | O28: E² (Mm3) | P28: Progression (%) | Q28: Commentaire général
C29: IA | D29: CA32, CA40 | F29: Engagé | M29: 0 | N29: 0 | O29: =M29*N29 -> 0 | P29: 33
F31: =P31 -> 33 | M31: =SUM(M29:M30) -> 0 | N31: =SUM(N29:N30) -> 0 | O31: =SUM(O29:O30) -> 0 | P31: =AVERAGE(P29:P30) -> 33
B33: MRC-2d : Superviser l'optimisation du réservoir de Saint-Gein et la connexion directe des irrigants concernés à cet ouvrage - Axe Ludon
B34: Tâche | C34: Maître d'ouvrage (MO) | D34: Partenaires techniques | E34: Opérateurs | F34: Etat d'avancement | G34: Début | H34: Fin | I34: Commentaires de la ligne | J34: Action engagé (MAEC ou autre) | K34: Surface engagé (ha) | L34: Vol d'eau récupéré | M34: Economie d'eau attendue (Mm3) | N34: FC | O34: E² (Mm3) | P34: Progression (%) | Q34: Commentaire général
C35: IA ou Syndicat intercommunal du Ludon Gaube ? | D35: IA, Syndicat intercommunal du Ludon Gaube, CA40 | F35: Non démarré | M35: 0 | N35: 0 | O35: =M35*N35 -> 0 | P35: 0
F37: =P37 -> 0 | M37: =SUM(M35:M36) -> 0 | N37: =SUM(N35:N36) -> 0 | O37: =SUM(O35:O36) -> 0 | P37: =AVERAGE(P35:P36) -> 0
B39: MRC-2e : Etudier la nécessité de créer une retenue déconnectée de substitution sur le Lusson
B40: Tâche | C40: Maître d'ouvrage (MO) | D40: Partenaires techniques | E40: Opérateurs | F40: Etat d'avancement | G40: Début | H40: Fin | I40: Commentaires de la ligne | J40: Action engagé (MAEC ou autre) | K40: Surface engagé (ha) | L40: Vol d'eau récupéré | M40: Economie d'eau attendue (Mm3) | N40: FC | O40: E² (Mm3) | P40: Progression (%) | Q40: Commentaire général
C41: IA | D41: CA40 | F41: Non démarré | M41: 0 | N41: 0 | O41: =M41*N41 -> 0 | P41: 0
F43: =P43 -> 0 | M43: =SUM(M41:M42) -> 0 | N43: =SUM(N41:N42) -> 0 | O43: =SUM(O41:O42) -> 0 | P43: =AVERAGE(P41:P42) -> 0

Sheet ASV_résumé
A1: ASV - Accompagnement, sensibilisation et valorisation | F1: ='PTGE Midour Synthèse'!C1 -> le 10/03/2025
A3: Code | B3: Tâche | C3: Actions à réaliser au préalable | D3: Actions qui en dépendent ou en lien | E3: Etat d'avancement | F3: Progression | G3: E² (Mm3) | H3: Objectif PTGE 2035 | I3: Commentaires
A4: ASV-1 | B4: Accompagner les acteurs agricoles dans leur démarche de progrès continu | E4: =AVERAGE(ASV!F7,ASV!F14,ASV!F20,ASV!F27,ASV!F34,ASV!F40) -> 49.22222222 | F4: =AVERAGE(ASV!P7,ASV!P14,ASV!P20,ASV!P27,ASV!P34,ASV!P40) -> 49.22222222 | G4: =SUM(ASV!O7,ASV!O14,ASV!O20,ASV!O27,ASV!O34,ASV!O40) -> 0 | H4: A poursuivre sur l'ensemble de la mise en œuvre du PTGE
A5: ASV-2 | B5: Accompagner les collectivités dans leur démarche de progrès continu | E5: =AVERAGE(ASV!F46,ASV!F52) -> 25.75 | F5: =AVERAGE(ASV!P46,ASV!P52) -> 25.75 | G5: =SUM(ASV!O46,ASV!O52) -> 0
A6: ASV-3 | B6: Elaborer un plan d'information, de sensibilisation et de valorisation | E6: =AVERAGE(ASV!F58) -> 50 | F6: =AVERAGE(ASV!P58) -> 50 | G6: =ASV!O58 -> 0
D7: Avancement moyen ASV | E7: =AVERAGE(E4:E6) -> 41.65740741 | F7: =AVERAGE(F4:F6) -> 41.65740741 | G7: =SUM(G4:G6) -> 0

Sheet ASV
B1: Accompagnement, sensibilisation et valorisation | F1: ='PTGE Midour Synthèse'!C1 -> le 10/03/2025
B2: ASV-1a : Appuyer individuellement les agriculteurs dans leur démarche de progrès : ATI
B3: Tâche | C3: Maître d'ouvrage (MO) | D3: Partenaires techniques | E3: Opérateurs | F3: Etat d'avancement | G3: Début | H3: Fin | I3: Commentaires de la ligne | J3: Action engagé (MAEC ou autre) | K3: Surface engagé (ha) | L3: Vol d'eau récupéré | M3: Economie d'eau attendue (Mm3) | N3: FC | O3: E² (Mm3) | P3: Progression (%) | Q3: Commentaire général | T3: #DBDBDB | U3: Non démarré | V3: Action non initiée / qui découle de l'avancement d'une préalable pour être démarrée
B4: Création d'un support de communication commun aux structures d'accompagnement agricole | C4: Animateur technique agricole | D4: Acteurs agricoles (Irrigadour, CA32, CA40, Bio du Gers, Agrobio40, Vivadour, Maïsadour) | E4: IA, | F4: Terminée | G4: 2022-07-01 | H4: 2022-12-31 | M4: 0 | N4: 0 | O4: =M4*N4 -> 0 | P4: 100 | Q4: Réalisé par les partenaires en lien avec les exploitants agricoles, selon les besoins | T4: #FFCCFF | U4: Engagé | V4: En cours, dans les étapes préliminaires
B5: Définition d'indicateurs communs des diagnostics et harmonisation des modalités de suivis des ATI | E5: IA, | F5: Terminée | G5: 2022-07-01 | H5: 2022-12-31 | P5: 100 | Q5: Au besoin : fait avec CA40 et Agrobio pour étude filière AB | T5: #CC66FF | U5: Bien avancé | V5: En cours, plutôt dans les dernières étapes
B6: Lancement des ATI | F6: Se poursuit | P6: 50 | Q6: un réalisé, l'autre en cours. Potentiellement d'autres à venir. | T6: #A9D08E | U6: Terminée | V6: Pour les actions ponctuelles avec une date de fin
F7: =P7 -> 83.33333333 | M7: =SUM(M4:M6) -> 0 | N7: =SUM(N4:N6) -> 0 | O7: =SUM(O4:O6) -> 0 | P7: =AVERAGE(P4:P6) -> 83.33333333 | T7: #A9D08E | U7: Se poursuit | V7: Action qui a vocation à durer dans le temps / Sans date de fin
B9: ASV-1b : Appuyer collectivement les agriculteurs dans leur démarche de progrès : GT, formations, journées d'échange
B10: Tâche | C10: Maître d'ouvrage (MO) | D10: Partenaires techniques | E10: Opérateurs | F10: Etat d'avancement | G10: Début | H10: Fin | I10: Commentaires de la ligne | J10: Action engagé (MAEC ou autre) | K10: Surface engagé (ha) | L10: Vol d'eau récupéré | M10: Economie d'eau attendue (Mm3) | N10: FC | O10: E² (Mm3) | P10: Progression (%) | Q10: Commentaire général
B11: Mise en place de journée d'échanges | C11: Animateur technique agricole | D11: Acteurs agricoles (Irrigadour, CA32, CA40, Bio du Gers, Agrobio40, Vivadour, Maïsadour), CFPPA | E11: IA, | F11: Engagé | G11: 2022-01-01 | H11: 2022-12-31 | I11: après AUM1a, AUM2bcde, AUM3b, AUM4ab, OGRM3b | M11: 0 | N11: 0 | O11: =M11*N11 -> 0 | P11: 33 | Q11: Action transversale qui regroupe aussi cette opportunité d'organisation d'évènements dédiés pour toute thématique hors fiches actions déjà visées par ce type d'appui
B12: Mise en place de formations | E12: IA, | F12: Engagé | P12: 33 | Q12: Contacts pris (cf. ORGM3b), à poursuivre et à l'ODJ du prochain comité agricole. Une formation en cours d'élaboration sur l'accompagnement au pilotage de la ferme (OAD irrigation)
B13: Mise en place de groupes de travail | E13: IA, | F13: Non démarré | P13: 0
F14: =P14 -> 22 | M14: =SUM(M11:M13) -> 0 | N14: =SUM(N11:N13) -> 0 | O14: =SUM(O11:O13) -> 0 | P14: =AVERAGE(P11:P13) -> 22
B16: ASV-1c : Mener des expérimentations
B17: Tâche | C17: Maître d'ouvrage (MO) | D17: Partenaires techniques | E17: Opérateurs | F17: Etat d'avancement | G17: Début | H17: Fin | I17: Commentaires de la ligne | J17: Action engagé (MAEC ou autre) | K17: Surface engagé (ha) | L17: Vol d'eau récupéré | M17: Economie d'eau attendue (Mm3) | N17: FC | O17: E² (Mm3) | P17: Progression (%) | Q17: Commentaire général
C18: Exploitants agricoles, AFAF, CA40, CA32, Maïsadour, Vivadour, autres acteurs agricoles, ADASEA | F18: Non démarré | I18: après AUM2a, AUM3a, OGRM3a | M18: 0 | N18: 0 | O18: =M18*N18 -> 0 | P18: 0 | Q18: Selon les besoins exprimés sur le territoire et les opportunités de développement d’expérimentations pour toute thématique hors fiches actions déjà visées par ce type d'appui
F20: =P20 -> 0 | M20: =SUM(M18:M19) -> 0 | N20: =SUM(N18:N19) -> 0 | O20: =SUM(O18:O19) -> 0 | P20: =AVERAGE(P18:P19) -> 0
B22: ASV-1d : Organiser l'information et la formation pour les conseillers agricoles
B23: Tâche | C23: Maître d'ouvrage (MO) | D23: Partenaires techniques | E23: Opérateurs | F23: Etat d'avancement | G23: Début | H23: Fin | I23: Commentaires de la ligne | J23: Action engagé (MAEC ou autre) | K23: Surface engagé (ha) | L23: Vol d'eau récupéré | M23: Economie d'eau attendue (Mm3) | N23: FC | O23: E² (Mm3) | P23: Progression (%) | Q23: Commentaire général
B24: Organisation de journée thématique | C24: Animateur technique agricole | D24: Acteurs du projet de territoire, intervenants extérieurs, CFPPA | E24: IA, | F24: Non démarré | I24: après AUM2d | M24: 0 | N24: 0 | O24: =M24*N24 -> 0 | P24: 0
B25: Information et sensibilisation | E25: IA, | F25: Non démarré
F27: =P27 -> 0 | M27: =SUM(M24:M26) -> 0 | N27: =SUM(N24:N26) -> 0 | O27: =SUM(O24:O26) -> 0 | P27: =AVERAGE(P24:P26) -> 0
B29: ASV-1e : Mobiliser les mesures agro-environnementales et climatiques
B30: Tâche | C30: Maître d'ouvrage (MO) | D30: Partenaires techniques | E30: Opérateurs | F30: Etat d'avancement | G30: Début | H30: Fin | I30: Commentaires de la ligne | J30: Action engagé (MAEC ou autre) | K30: Surface engagé (ha) | L30: Vol d'eau récupéré | M30: Economie d'eau attendue (Mm3) | N30: FC | O30: E² (Mm3) | P30: Progression (%) | Q30: Commentaire général
B31: Elaboration et validation d'un PAEC (Gers) | C31: Animateur technique agricole | D31: Acteurs du PTGE | E31: CA32, | F31: Terminée | G31: 2022-01-01 | H31: 2022-12-31 | M31: 0 | N31: 0 | O31: =M31*N31 -> 0 | P31: 100 | Q31: Deux PAEC lancés : occitanie et nouvelle aquitaine pour proposer des MAEc aux exploitants agricoles. Campagne 2023 : 22 contractualisations dans le Gers. Campagne 2024 : 12 contractualisations dans le Gers. de nouvelles mesures sont ouvertes pour harmonisation de la proposition dans les deux régions.
B32: Elaboration et validation d'un PAEC (Landes) | E32: CA40, | F32: Terminée | G32: 2022-01-01 | H32: 2022-12-31 | P32: 100 | Q32: Campagne 2023 : 0 contractuatualisations dans les Landes (1 débouté à l'instruction). Campagne 2024 : 2 contractualisations dans les Landes. De nouvelles MAEC disponibles (hamonisation avec le Gers). Campagne 2025 : Aire du PAEC agrandie pour inclure AAC Pujo/st Gein.
B33: Portage du PAEC | E33: IA, | F33: Se poursuit | G33: 2022-01-01 | H33: 2028-12-31 | P33: 100 | Q33: Toujours en cours
F34: =P34 -> 100 | M34: =SUM(M31:M33) -> 0 | N34: =SUM(N31:N33) -> 0 | O34: =SUM(O31:O33) -> 0 | P34: =AVERAGE(P31:P33) -> 100
B36: ASV-1f : Rechercher et construire de nouvelles mesures d'aide pour les agriculteurs
B37: Tâche | C37: Maître d'ouvrage (MO) | D37: Partenaires techniques | E37: Opérateurs | F37: Etat d'avancement | G37: Début | H37: Fin | I37: Commentaires de la ligne | J37: Action engagé (MAEC ou autre) | K37: Surface engagé (ha) | L37: Vol d'eau récupéré | M37: Economie d'eau attendue (Mm3) | N37: FC | O37: E² (Mm3) | P37: Progression (%) | Q37: Commentaire général
B38: Sollicitations et veille AAP | C38: Animateur technique agricole | D38: AEAG, Régions, DDT32, DDTM40, Europe, etc | E38: IA, | F38: Se poursuit | G38: 2022-01-01 | H38: 2028-12-31 | M38: 0 | N38: 0 | O38: =M38*N38 -> 0 | P38: 100 | Q38: Axe de travail permanent assuré par les animateurs
B39: PSE | E39: IA, | F39: Se poursuit | G39: 2021-01-01 | H39: 2028-12-31 | P39: 80 | Q39: Dispositif PSE devrait reprendre en 2025 avec le 12ème programme de l'AEAG. Recensement des besoins sur petits montants - MàJ après comité agricole à faire
F40: =P40 -> 90 | M40: =SUM(M38:M39) -> 0 | N40: =SUM(N38:N39) -> 0 | O40: =SUM(O38:O39) -> 0 | P40: =AVERAGE(P38:P39) -> 90
B42: ASV-2a : Développer des pratiques alternatives pour la gestion des paysages à l'échelle des collectivités
B43: Tâche | C43: Maître d'ouvrage (MO) | D43: Partenaires techniques | E43: Opérateurs | F43: Etat d'avancement | G43: Début | H43: Fin | I43: Commentaires de la ligne | J43: Action engagé (MAEC ou autre) | K43: Surface engagé (ha) | L43: Vol d'eau récupéré | M43: Economie d'eau attendue (Mm3) | N43: FC | O43: E² (Mm3) | P43: Progression (%) | Q43: Commentaire général
B44: Projet - Grain Bocager FDC40 / IA | C44: FDC40 | D44: FDC 32 / FDC 40 / IA / Arbres et Paysages 32 / Syndicats rivière | E44: FDC / IA | F44: Engagé | G44: 2024-08-13 | M44: 0 | N44: 0 | O44: =M44*N44 -> 0 | P44: 33 | Q44: Dépôt d'un dossier fonds vert en partenariat avec FDC40 (contact J. Brugnot) pour la partie landaise des PTGE du Midour et de la Douze
B45: Projet - Trame Verte (Grain Bocager) FDC32 / PETR | C45: FDC32 | D45: FDC 32 / FDC 40 / PETR / Arbres et Paysages 32 / Syndicats rivière | E45: FDC32 / PETR / AP32 | F45: Engagé | G45: 1905-07-15 | P45: 50 | Q45: Trame Verte en cours côté Gers sur le territoire du PETR Pays d'Armagnac, Institution Adour membre du Copil
F46: =P46 -> 41.5 | M46: =SUM(M44:M45) -> 0 | N46: =SUM(N44:N45) -> 0 | O46: =SUM(O44:O45) -> 0 | P46: =AVERAGE(P44:P45) -> 41.5
B48: ASV-2b : Développer des pratiques alternatives pour la gestion de l'eau à l'échelle des collectivités
B49: Tâche | C49: Maître d'ouvrage (MO) | D49: Partenaires techniques | E49: Opérateurs | F49: Etat d'avancement | G49: Début | H49: Fin | I49: Commentaires de la ligne | J49: Action engagé (MAEC ou autre) | K49: Surface engagé (ha) | L49: Vol d'eau récupéré | M49: Economie d'eau attendue (Mm3) | N49: FC | O49: E² (Mm3) | P49: Progression (%) | Q49: Commentaire général
C50: Collectivités | F50: Non démarré | I50: après ASV2a | M50: 0 | N50: 0 | O50: =M50*N50 -> 0 | P50: 10 | Q50: Cf. ASV 2a
F52: =P52 -> 10 | M52: =SUM(M50:M51) -> 0 | N52: =SUM(N50:N51) -> 0 | O52: =SUM(O50:O51) -> 0 | P52: =AVERAGE(P50:P51) -> 10
B54: ASV-3a : Elaborer un plan d'information, de sensibilisation et de valorisation
B55: Tâche | C55: Maître d'ouvrage (MO) | D55: Partenaires techniques | E55: Opérateurs | F55: Etat d'avancement | G55: Début | H55: Fin | I55: Commentaires de la ligne | J55: Action engagé (MAEC ou autre) | K55: Surface engagé (ha) | L55: Vol d'eau récupéré | M55: Economie d'eau attendue (Mm3) | N55: FC | O55: E² (Mm3) | P55: Progression (%) | Q55: Commentaire général
B56: Communication | C56: Elaboration du plan : IA (stage ou contrat) Mise en œuvre du plan : à définir | F56: Engagé | I56: Communication directe vers les agriculteurs du secteur grâce à la disponibilité des données issues du RGA via la DRAAF (SRISET) : Donnes niveau N2+ hors pacage | J56: Première récupération de contacts mi 2022 ; demande de mise à jour le 04/11/2024 | M56: 0 | N56: 0 | O56: =M56*N56 -> 0 | P56: 50 | Q56: Fin 2022 : Finalisation du plan d’information, de sensibilisation et de valorisation 2023 : début de mise en œuvre 2024 : demande de mise à jour des contacts N2+ hors pacage en cours
F58: =P58 -> 50 | M58: =SUM(M56:M57) -> 0 | N58: =SUM(N56:N57) -> 0 | O58: =SUM(O56:O57) -> 0 | P58: =AVERAGE(P56:P57) -> 50

Sheet Gouv_résumé
A1: GOUV - Gouvernance | G1: ='PTGE Midour Synthèse'!C1 -> le 10/03/2025
A3: Code | B3: Tâche | C3: Actions à réaliser au préalable | D3: Actions qui en dépendent ou en lien | E3: Etat d'avancement | F3: Progression | G3: E² (Mm3) | H3: Objectif PTGE 2035 | I3: Commentaires
A4: GOUV-1 | B4: Maintenir la gouvernance du projet de territoire et la mobilisation des instances | E4: =AVERAGE(Gouv!F6) -> 100 | F4: =Gouv!P6 -> 100 | G4: =Gouv!O6 -> 0 | I4: Un comité de suivi par an à ce jour (selon l'avancement des projets) avec au cours de l'année plusieurs comités agricoles pour des points d'avancement plus spécifiques et réguliers.
A5: GOUV-2 | B5: Animer et coordonner le projet de territoire | E5: =AVERAGE(Gouv!F12) -> 100 | F5: =Gouv!P12 -> 100 | G5: =Gouv!O12 -> 0 | I5: IA - Poste animation PTGE (1/2 ETP) IA - Poste animateur agricole (1ETP)
A6: GOUV-3 | B6: Elaborer un tableau de bord pour suivre la mise en œuvre du projet de territoire | E6: =AVERAGE(Gouv!F17) -> 100 | F6: =Gouv!P17 -> 100 | G6: =Gouv!O17 -> 0 | I6: Proposition d’envoyer le TdB aux membres du COPIL en amont du prochain COPIL
D7: Avancement moyen Gouv | E7: =AVERAGE(E4:E6) -> 100 | F7: =AVERAGE(F4:F6) -> 100 | G7: =SUM(G4:G6) -> 0

Sheet Gouv
B1: Gouvernance | F1: ='PTGE Midour Synthèse'!C1 -> le 10/03/2025
B2: GOUV-1 : Maintenir la gouvernance du projet de territoire et la mobilisation des instances
B3: Tâche | C3: Maître d'ouvrage (MO) | D3: Partenaires techniques | E3: Opérateurs | F3: Etat d'avancement | G3: Début | H3: Fin | I3: Commentaires de la ligne | J3: Action engagé (MAEC ou autre) | K3: Surface engagé (ha) | L3: Vol d'eau récupéré | M3: Economie d'eau attendue (Mm3) | N3: FC | O3: E² (Mm3) | P3: Progression (%) | Q3: Commentaire général | T3: #DBDBDB | U3: Non démarré | V3: Action non initiée / qui découle de l'avancement d'une préalable pour être démarrée
B4: Réunions du COPIL | C4: IA | E4: IA, | F4: Se poursuit | G4: 2020-01-01 | H4: 2028-12-31 | M4: 0 | N4: 1 | O4: =M4*N4 -> 0 | P4: 100 | Q4: Un comité de suivi par an à ce jour (selon l'avancement des projets) avec au cours de l'année plusieurs comités agricoles pour des points d'avancement plus spécifiques et réguliers. | T4: #FFCCFF | U4: Engagé | V4: En cours, dans les étapes préliminaires
B5: Réunions du COTECH | C5: IA | E5: IA, | F5: Se poursuit | G5: 2020-01-01 | H5: 2028-12-31 | P5: 100 | T5: #CC66FF | U5: Bien avancé | V5: En cours, plutôt dans les dernières étapes
F6: =P6 -> 100 | M6: =SUM(M4:M4) -> 0 | N6: =SUM(N4:N4) -> 1 | O6: =SUM(O4:O4) -> 0 | P6: =AVERAGE(P4:P5) -> 100 | T6: #A9D08E | U6: Terminée | V6: Pour les actions ponctuelles avec une date de fin
T7: #A9D08E | U7: Se poursuit | V7: Action qui a vocation à durer dans le temps / Sans date de fin
B8: GOUV-2 : Animer et coordonner le projet de territoire
B9: Tâche | C9: Maître d'ouvrage (MO) | D9: Partenaires techniques | E9: Opérateurs | F9: Etat d'avancement | G9: Début | H9: Fin | I9: Commentaires de la ligne | J9: Action engagé (MAEC ou autre) | K9: Surface engagé (ha) | L9: Vol d'eau récupéré | M9: Economie d'eau attendue (Mm3) | N9: FC | O9: E² (Mm3) | P9: Progression (%) | Q9: Commentaire général
B10: Bilan d'activité | C10: IA / structures agricoles pour animation agricole | E10: IA, | F10: Se poursuit | G10: 2020-01-01 | H10: 2028-12-31 | M10: 0 | N10: 0 | O10: =M10*N10 -> 0 | P10: 100 | Q10: Une animatrice a été recrutée à l'automne 2020 pour la mise en œuvre des actions du PTGE Midour. Départ de l'animatrice en décembre 2021. Recrutement de deux animatrices au printemps 2022 : animatrice générale et animatrice agricole. Départ de l'animatrice en novembre 2023. Recrutement animatrice agricole 01/10/2024.
B11: Comité agricole | C11: IA / structures agricoles pour animation agricole | E11: IA, | F11: Se poursuit | G11: 2020-01-01 | H11: 2028-12-31 | P11: 100
F12: =P12 -> 100 | M12: =SUM(M10:M10) -> 0 | N12: =SUM(N10:N10) -> 0 | O12: =SUM(O10:O10) -> 0 | P12: =AVERAGE(P10:P11) -> 100
B14: GOUV-3 : Elaborer un tableau de bord pour suivre la mise en œuvre du projet de territoire
B15: Tâche | C15: Maître d'ouvrage (MO) | D15: Partenaires techniques | E15: Opérateurs | F15: Etat d'avancement | G15: Début | H15: Fin | I15: Commentaires de la ligne | J15: Action engagé (MAEC ou autre) | K15: Surface engagé (ha) | L15: Vol d'eau récupéré | M15: Economie d'eau attendue (Mm3) | N15: FC | O15: E² (Mm3) | P15: Progression (%) | Q15: Commentaire général
B16: Tableau de bord | C16: IA | E16: IA, | F16: Se poursuit | G16: 2020-01-01 | H16: 2028-12-31 | M16: 0 | N16: 0 | O16: =M16*N16 -> 0 | P16: 100 | Q16: En 2022, 1ere révision du tableau de bord . En 2024 2nde révision : l'objectif est de le rendre plus visuel et plus automatisé. mise à jour continue.
F17: =P17 -> 100 | M17: =SUM(M16:M16) -> 0 | N17: =SUM(N16:N16) -> 0 | O17: =SUM(O16:O16) -> 0 | P17: =AVERAGE(P16:P16) -> 100

Sheet Synthèse_prog_action
S18: 5,35 Mm³ (2,15 reut + 2,1 Mm3 phc + 0,45 cscrh + 0,65 Mm3 rosm)
